Workbook

Sheet VOLT LOSS CAL
D2: Volt Loss / Wire Gauge Calculator
D3: Tech Support: 855.592.0029
B5: FILL OUT THE BLUE BOXES | F5: DATE:
B11: LED Strip
B12: Run Length (FT) | D12: =IF(C12>C14,"Exceed Max Run Length","") -> 
B14: Max Run Length | C14: =IFERROR(VLOOKUP($C$11,DATA!$O$3:$S$44,5,FALSE),"") -> 
B15: Voltage | C15: =IFERROR(VLOOKUP(C11,DATA!$O$3:$Q$44,3,FALSE),"") -> 
B16: Min. Voltage | C16: =IFERROR(VLOOKUP(C11,DATA!O3:V44,8,FALSE),"") -> 
B17: Wattage/FT | C17: =IFERROR(VLOOKUP($C$11,DATA!$O$3:$Q$44,2,FALSE),"") -> 
B18: Amperage/FT | C18: =IFERROR(VLOOKUP($C$11,DATA!$O$3:$R$44,4,FALSE),"") -> 
B20: Total Wattage | C20: =IFERROR((C12*C17),"") -> 
B21: Total Amperage | C21: =IFERROR((C18*C12),"") -> 
B23: Wire Gauge | D23: =IFERROR(IF(C27<C16,"Increase wire gauge or reduce load","Wire gauge and load is optimal"),"") -> Wire gauge and load is optimal | F23: Typical Wire Gauge
B24: Wire Length (FT) | F24: Static White | G24: 18
B25: Voltage Drop (%) | C25: =DATA!R54 ->  | F25: Dim to Warm | G25: 18
B26: Voltage Drop (V) | C26: =DATA!R55 ->  | F26: RGBW | G26: 18
B27: Voltage to LED | C27: =DATA!R56 -> 
B28: =IFERROR(IF(C27<C16,"Sug. Wire Gauge",""),"") ->  | C28: =IFERROR(IF(C27<C16,DATA!L61,""),"") -> 
B36: This design tool is for information only. All wiring must comply with the latest edition of NFPA70 - National Electrical Code, local ordinances, and applicable local codes. If you are unfamiliar with methods of installing electrical wiring, secure the services of a qualified, licensed electrician. JESCO Lighting Group assumes no responsibility for incorrect wiring.
B38: New York Corporate Office | D38: Los Angeles
B39: 15 Harbor Park Drive, Port Washington, NY 11050 | D39: 219 South 6th Avenue, City of Industry, California 91746
B40: Tel: 800.527.7796 Fax: 855.265.5768 | D40: Tel: 626.333.3661 Fax: 626.333.2955
D43: www.JESCOLIGHTING.com | F43: JW03312024

Sheet DATA (hidden)
B1: WIRE TABLE
A2: Wire | B2: Table | C2: ANNEAL | D2: ED COPPE | E2: R (AWG) | P2: W/FT | Q2: Voltage | R2: Amp/FT | S2: Max Run (FT) | T2: Max Run (Amp) | W2: 1 | X2: 2 | Y2: 3 | Z2: 4 | AA2: 5 | AB2: 6 | AC2: 7 | AD2: 8 | AE2: 9 | AF2: 10 | AG2: 11 | AH2: 12 | AI2: 13 | AJ2: 14 | AK2: 15 | AL2: 16 | AM2: 17 | AN2: 18 | AO2: 19 | AP2: 20 | AQ2: 21 | AR2: 22 | AS2: 23 | AT2: 24 | AU2: 25 | AV2: 26 | AW2: 27 | AX2: 28 | AY2: 29 | AZ2: 30 | BA2: 31 | BB2: 32 | BC2: 33 | BD2: 34 | BE2: 35 | BF2: 36 | BG2: 37 | BH2: 38 | BI2: 39 | BJ2: 40 | BK2: 41 | BL2: 42 | BM2: 43 | BN2: 44 | BO2: 45 | BP2: 46 | BQ2: 47 | BR2: 48 | BS2: 49 | BT2: 50 | BU2: 51 | BV2: 52 | BW2: 53 | BX2: 54 | BY2: 55 | BZ2: 56 | CA2: 57 | CB2: 58 | CC2: 59 | CD2: 60 | CE2: 61 | CF2: 62 | CG2: 63 | CH2: 64 | CI2: 65 | CJ2: 66 | CK2: 67 | CL2: 68 | CM2: 69 | CN2: 70 | CO2: 71 | CP2: 72 | CQ2: 73 | CR2: 74 | CS2: 75 | CT2: 76 | CU2: 77 | CV2: 78 | CW2: 79 | CX2: 80 | CY2: 81 | CZ2: 82 | DA2: 83 | DB2: 84 | DC2: 85 | DD2: 86 | DE2: 87 | DF2: 88 | DG2: 89 | DH2: 90 | DI2: 91 | DJ2: 92 | DK2: 93 | DL2: 94 | DM2: 95 | DN2: 96 | DO2: 97 | DP2: 98 | DQ2: 99 | DR2: 100 | DS2: 101 | DT2: 102 | DU2: 103 | DV2: 104 | DW2: 105 | DX2: 106 | DY2: 107 | DZ2: 108 | EA2: 109 | EB2: 110 | EC2: 111 | ED2: 112 | EE2: 113 | EF2: 114 | EG2: 115 | EH2: 116 | EI2: 117 | EJ2: 118 | EK2: 119 | EL2: 120 | EM2: 121 | EN2: 122 | EO2: 123 | EP2: 124 | EQ2: 125 | ER2: 126 | ES2: 127 | ET2: 128 | EU2: 129 | EV2: 130 | EW2: 131 | EX2: 132 | EY2: 133 | EZ2: 134 | FA2: 135 | FB2: 136 | FC2: 137 | FD2: 138 | FE2: 139 | FF2: 140 | FG2: 141 | FH2: 142 | FI2: 143 | FJ2: 144 | FK2: 145 | FL2: 146 | FM2: 147 | FN2: 148 | FO2: 149 | FP2: 150 | FQ2: 151 | FR2: 152 | FS2: 153 | FT2: 154 | FU2: 155 | FV2: 156 | FW2: 157 | FX2: 158 | FY2: 159 | FZ2: 160 | GA2: 161 | GB2: 162 | GC2: 163 | GD2: 164 | GE2: 165 | GF2: 166 | GG2: 167 | GH2: 168 | GI2: 169 | GJ2: 170 | GK2: 171 | GL2: 172 | GM2: 173 | GN2: 174 | GO2: 175 | GP2: 176 | GQ2: 177 | GR2: 178 | GS2: 179 | GT2: 180 | GU2: 181 | GV2: 182 | GW2: 183 | GX2: 184 | GY2: 185 | GZ2: 186 | HA2: 187 | HB2: 188 | HC2: 189 | HD2: 190 | HE2: 191 | HF2: 192 | HG2: 193 | HH2: 194 | HI2: 195 | HJ2: 196 | HK2: 197 | HL2: 198 | HM2: 199 | HN2: 200 | HO2: 201 | HP2: 202 | HQ2: 203 | HR2: 204 | HS2: 205 | HT2: 206
B3: AWG | C3: DIA in | D3: CIRC | E3: SQUARE | F3: OHM per | H3: Ohm per foot | L3: 12V | O3: DL-AC-FLEX2-UT | P3: 5.5 | Q3: 120 | R3: =P3/Q3 -> 0.04583333333 | S3: 100 | T3: =R3*S3 -> 4.583333333 | U3: Constant Current | V3: 112 | W3: =R3*$W$2 -> 0.04583333333 | X3: =$R3*$X$2 -> 0.09166666667 | Y3: =$R3*$Y$2 -> 0.1375 | Z3: =$R3*$Z$2 -> 0.1833333333 | AA3: =$R3*$AA$2 -> 0.2291666667 | AB3: =$R3*$AB$2 -> 0.275 | AC3: =$R3*$AC$2 -> 0.3208333333 | AD3: =$R3*$AD$2 -> 0.3666666667 | AE3: =$R3*$AE$2 -> 0.4125 | AF3: =$R3*$AF$2 -> 0.4583333333 | AG3: =$R3*$AG$2 -> 0.5041666667 | AH3: =$R3*$AH$2 -> 0.55 | AI3: =$R3*$AI$2 -> 0.5958333333 | AJ3: =$R3*$AJ$2 -> 0.6416666667 | AK3: =$R3*$AK$2 -> 0.6875 | AL3: =$R3*$AL$2 -> 0.7333333333 | AM3: =$R3*$AM$2 -> 0.7791666667 | AN3: =$R3*$AN$2 -> 0.825 | AO3: =$R3*$AO$2 -> 0.8708333333 | AP3: =$R3*$AP$2 -> 0.9166666667 | AQ3: =$R3*$AQ$2 -> 0.9625 | AR3: =$R3*$AR$2 -> 1.008333333 | AS3: =$R3*$AS$2 -> 1.054166667 | AT3: =$R3*$AT$2 -> 1.1 | AU3: =$R3*$AU$2 -> 1.145833333 | AV3: =$R3*$AV$2 -> 1.191666667 | AW3: =$R3*$AW$2 -> 1.2375 | AX3: =$R3*$AX$2 -> 1.283333333 | AY3: =$R3*$AY$2 -> 1.329166667 | AZ3: =$R3*$AZ$2 -> 1.375 | BA3: =$R3*$BA$2 -> 1.420833333 | BB3: =$R3*$BB$2 -> 1.466666667 | BC3: =$R3*$BC$2 -> 1.5125 | BD3: =$R3*$BD$2 -> 1.558333333 | BE3: =$R3*$BE$2 -> 1.604166667 | BF3: =$R3*$BF$2 -> 1.65 | BG3: =$R3*$BG$2 -> 1.695833333 | BH3: =$R3*$BH$2 -> 1.741666667 | BI3: =$R3*$BI$2 -> 1.7875 | BJ3: =$R3*$BJ$2 -> 1.833333333 | BK3: =$R3*$BK$2 -> 1.879166667 | BL3: =$R3*$BL$2 -> 1.925 | BM3: =$R3*$BM$2 -> 1.970833333 | BN3: =$R3*$BN$2 -> 2.016666667 | BO3: =$R3*$BO$2 -> 2.0625 | BP3: =$R3*$BP$2 -> 2.108333333 | BQ3: =$R3*$BQ$2 -> 2.154166667 | BR3: =$R3*$BR$2 -> 2.2 | BS3: =$R3*$BS$2 -> 2.245833333 | BT3: =$R3*$BT$2 -> 2.291666667 | BU3: =$R3*$BU$2 -> 2.3375 | BV3: =$R3*$BV$2 -> 2.383333333 | BW3: =$R3*$BW$2 -> 2.429166667 | BX3: =$R3*$BX$2 -> 2.475 | BY3: =$R3*$BY$2 -> 2.520833333 | BZ3: =$R3*$BZ$2 -> 2.566666667 | CA3: =$R3*$CA$2 -> 2.6125 | CB3: =$R3*$CB$2 -> 2.658333333 | CC3: =$R3*$CC$2 -> 2.704166667 | CD3: =$R3*$CD$2 -> 2.75 | CE3: =$R3*$CE$2 -> 2.795833333 | CF3: =$R3*$CF$2 -> 2.841666667 | CG3: =$R3*$CG$2 -> 2.8875 | CH3: =$R3*$CH$2 -> 2.933333333 | CI3: =$R3*$CI$2 -> 2.979166667 | CJ3: =$R3*$CJ$2 -> 3.025 | CK3: =$R3*$CK$2 -> 3.070833333 | CL3: =$R3*$CL$2 -> 3.116666667 | CM3: =$R3*$CM$2 -> 3.1625 | CN3: =$R3*$CN$2 -> 3.208333333 | CO3: =$R3*$CO$2 -> 3.254166667 | CP3: =$R3*$CP$2 -> 3.3 | CQ3: =$R3*$CQ$2 -> 3.345833333 | CR3: =$R3*$CR$2 -> 3.391666667 | CS3: =$R3*$CS$2 -> 3.4375 | CT3: =$R3*$CT$2 -> 3.483333333 | CU3: =$R3*$CU$2 -> 3.529166667 | CV3: =$R3*$CV$2 -> 3.575 | CW3: =$R3*$CW$2 -> 3.620833333 | CX3: =$R3*$CX$2 -> 3.666666667 | CY3: =$R3*$CY$2 -> 3.7125 | CZ3: =$R3*$CZ$2 -> 3.758333333 | DA3: =$R3*$DA$2 -> 3.804166667 | DB3: =$R3*$DB$2 -> 3.85 | DC3: =$R3*$DC$2 -> 3.895833333 | DD3: =$R3*$DD$2 -> 3.941666667 | DE3: =$R3*$DE$2 -> 3.9875 | DF3: =$R3*$DF$2 -> 4.033333333 | DG3: =$R3*$DG$2 -> 4.079166667 | DH3: =$R3*$DH$2 -> 4.125 | DI3: =$R3*$DI$2 -> 4.170833333 | DJ3: =$R3*$DJ$2 -> 4.216666667 | DK3: =$R3*$DK$2 -> 4.2625 | DL3: =$R3*$DL$2 -> 4.308333333 | DM3: =$R3*$DM$2 -> 4.354166667 | DN3: =$R3*$DN$2 -> 4.4 | DO3: =$R3*$DO$2 -> 4.445833333 | DP3: =$R3*$DP$2 -> 4.491666667 | DQ3: =$R3*$DQ$2 -> 4.5375 | DR3: =$R3*$DR$2 -> 4.583333333 | DS3: =$R3*$DS$2 -> 4.629166667 | DT3: =$R3*$DT$2 -> 4.675 | DU3: =$R3*$DU$2 -> 4.720833333 | DV3: =$R3*$DV$2 -> 4.766666667 | DW3: =$R3*$DW$2 -> 4.8125 | DX3: =$R3*$DX$2 -> 4.858333333 | DY3: =$R3*$DY$2 -> 4.904166667 | DZ3: =$R3*$DZ$2 -> 4.95 | EA3: =$R3*$EA$2 -> 4.995833333 | EB3: =$R3*$EB$2 -> 5.041666667 | EC3: =$R3*$EC$2 -> 5.0875 | ED3: =$R3*$ED$2 -> 5.133333333 | EE3: =$R3*$EE$2 -> 5.179166667 | EF3: =$R3*$EF$2 -> 5.225 | EG3: =$R3*$EG$2 -> 5.270833333 | EH3: =$R3*$EH$2 -> 5.316666667 | EI3: =$R3*$EI$2 -> 5.3625 | EJ3: =$R3*$EJ$2 -> 5.408333333 | EK3: =$R3*$EK$2 -> 5.454166667 | EL3: =$R3*$EL$2 -> 5.5 | EM3: =$R3*$EM$2 -> 5.545833333 | EN3: =$R3*$EN$2 -> 5.591666667 | EO3: =$R3*$EO$2 -> 5.6375 | EP3: =$R3*$EP$2 -> 5.683333333 | EQ3: =$R3*$EQ$2 -> 5.729166667 | ER3: =$R3*$ER$2 -> 5.775 | ES3: =$R3*$ES$2 -> 5.820833333 | ET3: =$R3*$ET$2 -> 5.866666667 | EU3: =$R3*$EU$2 -> 5.9125 | EV3: =$R3*$EV$2 -> 5.958333333 | EW3: =$R3*$EW$2 -> 6.004166667 | EX3: =$R3*$EX$2 -> 6.05 | EY3: =$R3*$EY$2 -> 6.095833333 | EZ3: =$R3*$EZ$2 -> 6.141666667 | FA3: =$R3*$FA$2 -> 6.1875 | FB3: =$R3*$FB$2 -> 6.233333333 | FC3: =$R3*$FC$2 -> 6.279166667 | FD3: =$R3*$FD$2 -> 6.325 | FE3: =$R3*$FE$2 -> 6.370833333 | FF3: =$R3*$FF$2 -> 6.416666667 | FG3: =$R3*$FG$2 -> 6.4625 | FH3: =$R3*$FH$2 -> 6.508333333 | FI3: =$R3*$FI$2 -> 6.554166667 | FJ3: =$R3*$FJ$2 -> 6.6 | FK3: =$R3*$FK$2 -> 6.645833333 | FL3: =$R3*$FL$2 -> 6.691666667 | FM3: =$R3*$FM$2 -> 6.7375 | FN3: =$R3*$FN$2 -> 6.783333333 | FO3: =$R3*$FO$2 -> 6.829166667 | FP3: =$R3*$FP$2 -> 6.875 | FQ3: =$R3*$FQ$2 -> 6.920833333 | FR3: =$R3*$FR$2 -> 6.966666667 | FS3: =$R3*$FS$2 -> 7.0125 | FT3: =$R3*$FT$2 -> 7.058333333 | FU3: =$R3*$FU$2 -> 7.104166667 | FV3: =$R3*$FV$2 -> 7.15 | FW3: =$R3*$FW$2 -> 7.195833333 | FX3: =$R3*$FX$2 -> 7.241666667 | FY3: =$R3*$FY$2 -> 7.2875 | FZ3: =$R3*$FZ$2 -> 7.333333333 | GA3: =$R3*$GA$2 -> 7.379166667 | GB3: =$R3*$GB$2 -> 7.425 | GC3: =$R3*$GC$2 -> 7.470833333 | GD3: =$R3*$GD$2 -> 7.516666667
B4: gauge | C4: mils | D4: MILS | E4: MICROIN | F4: 1000 ft | L4: 24V | O4: DL-AC-FLEX2-JA8 | P4: 4 | Q4: 120 | R4: =P4/Q4 -> 0.03333333333 | S4: 100 | T4: =R4*S4 -> 3.333333333 | U4: Constant Current | V4: 112 | W4: 0.03333333333 | X4: 0.06666666667 | Y4: 0.1 | Z4: 0.1333333333 | AA4: 0.1666666667 | AB4: 0.2 | AC4: 0.2333333333 | AD4: 0.2666666667 | AE4: 0.3 | AF4: 0.3333333333 | AG4: 0.3666666667 | AH4: 0.4 | AI4: 0.4333333333 | AJ4: 0.4666666667 | AK4: 0.5 | AL4: 0.5333333333 | AM4: 0.5666666667 | AN4: 0.6 | AO4: 0.6333333333 | AP4: 0.6666666667 | AQ4: 0.7 | AR4: 0.7333333333 | AS4: 0.7666666667 | AT4: 0.8 | AU4: 0.8333333333 | AV4: 0.8666666667 | AW4: 0.9 | AX4: 0.9333333333 | AY4: 0.9666666667 | AZ4: 1 | BA4: 1.033333333 | BB4: 1.066666667 | BC4: 1.1 | BD4: 1.133333333 | BE4: 1.166666667 | BF4: 1.2 | BG4: 1.233333333 | BH4: 1.266666667 | BI4: 1.3 | BJ4: 1.333333333 | BK4: 1.366666667 | BL4: 1.4 | BM4: 1.433333333 | BN4: 1.466666667 | BO4: 1.5 | BP4: 1.533333333 | BQ4: 1.566666667 | BR4: 1.6 | BS4: 1.633333333 | BT4: 1.666666667 | BU4: 1.7 | BV4: 1.733333333 | BW4: 1.766666667 | BX4: 1.8 | BY4: 1.833333333 | BZ4: 1.866666667 | CA4: 1.9 | CB4: 1.933333333 | CC4: 1.966666667 | CD4: 2 | CE4: 2.033333333 | CF4: 2.066666667 | CG4: 2.1 | CH4: 2.133333333 | CI4: 2.166666667 | CJ4: 2.2 | CK4: 2.233333333 | CL4: 2.266666667 | CM4: 2.3 | CN4: 2.333333333 | CO4: 2.366666667 | CP4: 2.4 | CQ4: 2.433333333 | CR4: 2.466666667 | CS4: 2.5 | CT4: 2.533333333 | CU4: 2.566666667 | CV4: 2.6 | CW4: 2.633333333 | CX4: 2.666666667 | CY4: 2.7 | CZ4: 2.733333333 | DA4: 2.766666667 | DB4: 2.8 | DC4: 2.833333333 | DD4: 2.866666667 | DE4: 2.9 | DF4: 2.933333333 | DG4: 2.966666667 | DH4: 3 | DI4: 3.033333333 | DJ4: 3.066666667 | DK4: 3.1 | DL4: 3.133333333 | DM4: 3.166666667 | DN4: 3.2 | DO4: 3.233333333 | DP4: 3.266666667 | DQ4: 3.3 | DR4: 3.333333333 | DS4: 3.366666667 | DT4: 3.4 | DU4: 3.433333333 | DV4: 3.466666667 | DW4: 3.5 | DX4: 3.533333333 | DY4: 3.566666667 | DZ4: 3.6 | EA4: 3.633333333 | EB4: 3.666666667 | EC4: 3.7 | ED4: 3.733333333 | EE4: 3.766666667 | EF4: 3.8 | EG4: 3.833333333 | EH4: 3.866666667 | EI4: 3.9 | EJ4: 3.933333333 | EK4: 3.966666667 | EL4: 4 | EM4: 4.033333333 | EN4: 4.066666667 | EO4: 4.1 | EP4: 4.133333333 | EQ4: 4.166666667 | ER4: 4.2 | ES4: 4.233333333 | ET4: 4.266666667 | EU4: 4.3 | EV4: 4.333333333 | EW4: 4.366666667 | EX4: 4.4 | EY4: 4.433333333 | EZ4: 4.466666667 | FA4: 4.5 | FB4: 4.533333333 | FC4: 4.566666667 | FD4: 4.6 | FE4: 4.633333333 | FF4: 4.666666667 | FG4: 4.7 | FH4: 4.733333333 | FI4: 4.766666667 | FJ4: 4.8 | FK4: 4.833333333 | FL4: 4.866666667 | FM4: 4.9 | FN4: 4.933333333 | FO4: 4.966666667 | FP4: 5 | FQ4: 5.033333333 | FR4: 5.066666667 | FS4: 5.1 | FT4: 5.133333333 | FU4: 5.166666667 | FV4: 5.2 | FW4: 5.233333333 | FX4: 5.266666667 | FY4: 5.3 | FZ4: 5.333333333 | GA4: 5.366666667 | GB4: 5.4 | GC4: 5.433333333 | GD4: 5.466666667
B5: ===== | C5: ======= | D5: ======== | E5: ======== | F5: ======== | L5: 48V | O5: DL-AC-FLEX2-FS | P5: 4 | Q5: 120 | R5: 0.03333333333 | S5: 164 | T5: =R5*S5 -> 5.466666667 | U5: Constant Current | V5: 112 | W5: 0.03333333333 | X5: 0.06666666667 | Y5: 0.1 | Z5: 0.1333333333 | AA5: 0.1666666667 | AB5: 0.2 | AC5: 0.2333333333 | AD5: 0.2666666667 | AE5: 0.3 | AF5: 0.3333333333 | AG5: 0.3666666667 | AH5: 0.4 | AI5: 0.4333333333 | AJ5: 0.4666666667 | AK5: 0.5 | AL5: 0.5333333333 | AM5: 0.5666666667 | AN5: 0.6 | AO5: 0.6333333333 | AP5: 0.6666666667 | AQ5: 0.7 | AR5: 0.7333333333 | AS5: 0.7666666667 | AT5: 0.8 | AU5: 0.8333333333 | AV5: 0.8666666667 | AW5: 0.9 | AX5: 0.9333333333 | AY5: 0.9666666667 | AZ5: 1 | BA5: 1.033333333 | BB5: 1.066666667 | BC5: 1.1 | BD5: 1.133333333 | BE5: 1.166666667 | BF5: 1.2 | BG5: 1.233333333 | BH5: 1.266666667 | BI5: 1.3 | BJ5: 1.333333333 | BK5: 1.366666667 | BL5: 1.4 | BM5: 1.433333333 | BN5: 1.466666667 | BO5: 1.5 | BP5: 1.533333333 | BQ5: 1.566666667 | BR5: 1.6 | BS5: 1.633333333 | BT5: 1.666666667 | BU5: 1.7 | BV5: 1.733333333 | BW5: 1.766666667 | BX5: 1.8 | BY5: 1.833333333 | BZ5: 1.866666667 | CA5: 1.9 | CB5: 1.933333333 | CC5: 1.966666667 | CD5: 2 | CE5: 2.033333333 | CF5: 2.066666667 | CG5: 2.1 | CH5: 2.133333333 | CI5: 2.166666667 | CJ5: 2.2 | CK5: 2.233333333 | CL5: 2.266666667 | CM5: 2.3 | CN5: 2.333333333 | CO5: 2.366666667 | CP5: 2.4 | CQ5: 2.433333333 | CR5: 2.466666667 | CS5: 2.5 | CT5: 2.533333333 | CU5: 2.566666667 | CV5: 2.6 | CW5: 2.633333333 | CX5: 2.666666667 | CY5: 2.7 | CZ5: 2.733333333 | DA5: 2.766666667 | DB5: 2.8 | DC5: 2.833333333 | DD5: 2.866666667 | DE5: 2.9 | DF5: 2.933333333 | DG5: 2.966666667 | DH5: 3 | DI5: 3.033333333 | DJ5: 3.066666667 | DK5: 3.1 | DL5: 3.133333333 | DM5: 3.166666667 | DN5: 3.2 | DO5: 3.233333333 | DP5: 3.266666667 | DQ5: 3.3 | DR5: 3.333333333 | DS5: 3.366666667 | DT5: 3.4 | DU5: 3.433333333 | DV5: 3.466666667 | DW5: 3.5 | DX5: 3.533333333 | DY5: 3.566666667 | DZ5: 3.6 | EA5: 3.633333333 | EB5: 3.666666667 | EC5: 3.7 | ED5: 3.733333333 | EE5: 3.766666667 | EF5: 3.8 | EG5: 3.833333333 | EH5: 3.866666667 | EI5: 3.9 | EJ5: 3.933333333 | EK5: 3.966666667 | EL5: 4 | EM5: 4.033333333 | EN5: 4.066666667 | EO5: 4.1 | EP5: 4.133333333 | EQ5: 4.166666667 | ER5: 4.2 | ES5: 4.233333333 | ET5: 4.266666667 | EU5: 4.3 | EV5: 4.333333333 | EW5: 4.366666667 | EX5: 4.4 | EY5: 4.433333333 | EZ5: 4.466666667 | FA5: 4.5 | FB5: 4.533333333 | FC5: 4.566666667 | FD5: 4.6 | FE5: 4.633333333 | FF5: 4.666666667 | FG5: 4.7 | FH5: 4.733333333 | FI5: 4.766666667 | FJ5: 4.8 | FK5: 4.833333333 | FL5: 4.866666667 | FM5: 4.9 | FN5: 4.933333333 | FO5: 4.966666667 | FP5: 5 | FQ5: 5.033333333 | FR5: 5.066666667 | FS5: 5.1 | FT5: 5.133333333 | FU5: 5.166666667 | FV5: 5.2 | FW5: 5.233333333 | FX5: 5.266666667 | FY5: 5.3 | FZ5: 5.333333333 | GA5: 5.366666667 | GB5: 5.4 | GC5: 5.433333333 | GD5: 5.466666667
B6: 0 | C6: 460 | D6: 211600 | E6: 166200 | F6: 0.04901 | H6: =F6/1000 -> 4.901e-05 | L6: 120V | O6: DL-AC-FLEX2-LT | P6: 4 | Q6: 120 | R6: 0.03333333333 | S6: 164 | T6: 5.466666667 | U6: Constant Current | V6: 112 | W6: 0.03333333333 | X6: 0.06666666667 | Y6: 0.1 | Z6: 0.1333333333 | AA6: 0.1666666667 | AB6: 0.2 | AC6: 0.2333333333 | AD6: 0.2666666667 | AE6: 0.3 | AF6: 0.3333333333 | AG6: 0.3666666667 | AH6: 0.4 | AI6: 0.4333333333 | AJ6: 0.4666666667 | AK6: 0.5 | AL6: 0.5333333333 | AM6: 0.5666666667 | AN6: 0.6 | AO6: 0.6333333333 | AP6: 0.6666666667 | AQ6: 0.7 | AR6: 0.7333333333 | AS6: 0.7666666667 | AT6: 0.8 | AU6: 0.8333333333 | AV6: 0.8666666667 | AW6: 0.9 | AX6: 0.9333333333 | AY6: 0.9666666667 | AZ6: 1 | BA6: 1.033333333 | BB6: 1.066666667 | BC6: 1.1 | BD6: 1.133333333 | BE6: 1.166666667 | BF6: 1.2 | BG6: 1.233333333 | BH6: 1.266666667 | BI6: 1.3 | BJ6: 1.333333333 | BK6: 1.366666667 | BL6: 1.4 | BM6: 1.433333333 | BN6: 1.466666667 | BO6: 1.5 | BP6: 1.533333333 | BQ6: 1.566666667 | BR6: 1.6 | BS6: 1.633333333 | BT6: 1.666666667 | BU6: 1.7 | BV6: 1.733333333 | BW6: 1.766666667 | BX6: 1.8 | BY6: 1.833333333 | BZ6: 1.866666667 | CA6: 1.9 | CB6: 1.933333333 | CC6: 1.966666667 | CD6: 2 | CE6: 2.033333333 | CF6: 2.066666667 | CG6: 2.1 | CH6: 2.133333333 | CI6: 2.166666667 | CJ6: 2.2 | CK6: 2.233333333 | CL6: 2.266666667 | CM6: 2.3 | CN6: 2.333333333 | CO6: 2.366666667 | CP6: 2.4 | CQ6: 2.433333333 | CR6: 2.466666667 | CS6: 2.5 | CT6: 2.533333333 | CU6: 2.566666667 | CV6: 2.6 | CW6: 2.633333333 | CX6: 2.666666667 | CY6: 2.7 | CZ6: 2.733333333 | DA6: 2.766666667 | DB6: 2.8 | DC6: 2.833333333 | DD6: 2.866666667 | DE6: 2.9 | DF6: 2.933333333 | DG6: 2.966666667 | DH6: 3 | DI6: 3.033333333 | DJ6: 3.066666667 | DK6: 3.1 | DL6: 3.133333333 | DM6: 3.166666667 | DN6: 3.2 | DO6: 3.233333333 | DP6: 3.266666667 | DQ6: 3.3 | DR6: 3.333333333 | DS6: 3.366666667 | DT6: 3.4 | DU6: 3.433333333 | DV6: 3.466666667 | DW6: 3.5 | DX6: 3.533333333 | DY6: 3.566666667 | DZ6: 3.6 | EA6: 3.633333333 | EB6: 3.666666667 | EC6: 3.7 | ED6: 3.733333333 | EE6: 3.766666667 | EF6: 3.8 | EG6: 3.833333333 | EH6: 3.866666667 | EI6: 3.9 | EJ6: 3.933333333 | EK6: 3.966666667 | EL6: 4 | EM6: 4.033333333 | EN6: 4.066666667 | EO6: 4.1 | EP6: 4.133333333 | EQ6: 4.166666667 | ER6: 4.2 | ES6: 4.233333333 | ET6: 4.266666667 | EU6: 4.3 | EV6: 4.333333333 | EW6: 4.366666667 | EX6: 4.4 | EY6: 4.433333333 | EZ6: 4.466666667 | FA6: 4.5 | FB6: 4.533333333 | FC6: 4.566666667 | FD6: 4.6 | FE6: 4.633333333 | FF6: 4.666666667 | FG6: 4.7 | FH6: 4.733333333 | FI6: 4.766666667 | FJ6: 4.8 | FK6: 4.833333333 | FL6: 4.866666667 | FM6: 4.9 | FN6: 4.933333333 | FO6: 4.966666667 | FP6: 5 | FQ6: 5.033333333 | FR6: 5.066666667 | FS6: 5.1 | FT6: 5.133333333 | FU6: 5.166666667 | FV6: 5.2 | FW6: 5.233333333 | FX6: 5.266666667 | FY6: 5.3 | FZ6: 5.333333333 | GA6: 5.366666667 | GB6: 5.4 | GC6: 5.433333333 | GD6: 5.466666667
B7: 0 | C7: 409.6 | D7: 167800 | E7: 131800 | F7: 0.0618 | H7: =F7/1000 -> 6.18e-05 | O7: DL-AC-FLEX2-EB | P7: 2.5 | Q7: 120 | R7: 0.02083333333 | S7: 164 | T7: 3.416666667 | U7: Constant Current | V7: 112 | W7: 0.02083333333 | X7: 0.04166666667 | Y7: 0.0625 | Z7: 0.08333333333 | AA7: 0.1041666667 | AB7: 0.125 | AC7: 0.1458333333 | AD7: 0.1666666667 | AE7: 0.1875 | AF7: 0.2083333333 | AG7: 0.2291666667 | AH7: 0.25 | AI7: 0.2708333333 | AJ7: 0.2916666667 | AK7: 0.3125 | AL7: 0.3333333333 | AM7: 0.3541666667 | AN7: 0.375 | AO7: 0.3958333333 | AP7: 0.4166666667 | AQ7: 0.4375 | AR7: 0.4583333333 | AS7: 0.4791666667 | AT7: 0.5 | AU7: 0.5208333333 | AV7: 0.5416666667 | AW7: 0.5625 | AX7: 0.5833333333 | AY7: 0.6041666667 | AZ7: 0.625 | BA7: 0.6458333333 | BB7: 0.6666666667 | BC7: 0.6875 | BD7: 0.7083333333 | BE7: 0.7291666667 | BF7: 0.75 | BG7: 0.7708333333 | BH7: 0.7916666667 | BI7: 0.8125 | BJ7: 0.8333333333 | BK7: 0.8541666667 | BL7: 0.875 | BM7: 0.8958333333 | BN7: 0.9166666667 | BO7: 0.9375 | BP7: 0.9583333333 | BQ7: 0.9791666667 | BR7: 1 | BS7: 1.020833333 | BT7: 1.041666667 | BU7: 1.0625 | BV7: 1.083333333 | BW7: 1.104166667 | BX7: 1.125 | BY7: 1.145833333 | BZ7: 1.166666667 | CA7: 1.1875 | CB7: 1.208333333 | CC7: 1.229166667 | CD7: 1.25 | CE7: 1.270833333 | CF7: 1.291666667 | CG7: 1.3125 | CH7: 1.333333333 | CI7: 1.354166667 | CJ7: 1.375 | CK7: 1.395833333 | CL7: 1.416666667 | CM7: 1.4375 | CN7: 1.458333333 | CO7: 1.479166667 | CP7: 1.5 | CQ7: 1.520833333 | CR7: 1.541666667 | CS7: 1.5625 | CT7: 1.583333333 | CU7: 1.604166667 | CV7: 1.625 | CW7: 1.645833333 | CX7: 1.666666667 | CY7: 1.6875 | CZ7: 1.708333333 | DA7: 1.729166667 | DB7: 1.75 | DC7: 1.770833333 | DD7: 1.791666667 | DE7: 1.8125 | DF7: 1.833333333 | DG7: 1.854166667 | DH7: 1.875 | DI7: 1.895833333 | DJ7: 1.916666667 | DK7: 1.9375 | DL7: 1.958333333 | DM7: 1.979166667 | DN7: 2 | DO7: 2.020833333 | DP7: 2.041666667 | DQ7: 2.0625 | DR7: 2.083333333 | DS7: 2.104166667 | DT7: 2.125 | DU7: 2.145833333 | DV7: 2.166666667 | DW7: 2.1875 | DX7: 2.208333333 | DY7: 2.229166667 | DZ7: 2.25 | EA7: 2.270833333 | EB7: 2.291666667 | EC7: 2.3125 | ED7: 2.333333333 | EE7: 2.354166667 | EF7: 2.375 | EG7: 2.395833333 | EH7: 2.416666667 | EI7: 2.4375 | EJ7: 2.458333333 | EK7: 2.479166667 | EL7: 2.5 | EM7: 2.520833333 | EN7: 2.541666667 | EO7: 2.5625 | EP7: 2.583333333 | EQ7: 2.604166667 | ER7: 2.625 | ES7: 2.645833333 | ET7: 2.666666667 | EU7: 2.6875 | EV7: 2.708333333 | EW7: 2.729166667 | EX7: 2.75 | EY7: 2.770833333 | EZ7: 2.791666667 | FA7: 2.8125 | FB7: 2.833333333 | FC7: 2.854166667 | FD7: 2.875 | FE7: 2.895833333 | FF7: 2.916666667 | FG7: 2.9375 | FH7: 2.958333333 | FI7: 2.979166667 | FJ7: 3 | FK7: 3.020833333 | FL7: 3.041666667 | FM7: 3.0625 | FN7: 3.083333333 | FO7: 3.104166667 | FP7: 3.125 | FQ7: 3.145833333 | FR7: 3.166666667 | FS7: 3.1875 | FT7: 3.208333333 | FU7: 3.229166667 | FV7: 3.25 | FW7: 3.270833333 | FX7: 3.291666667 | FY7: 3.3125 | FZ7: 3.333333333 | GA7: 3.354166667 | GB7: 3.375 | GC7: 3.395833333 | GD7: 3.416666667
B8: 0 | C8: 364.8 | D8: 133100 | E8: 104500 | F8: 0.07793 | H8: 7.793e-05 | O8: DL-AC-FLEX2-RGBW | P8: 3 | Q8: 120 | R8: 0.025 | S8: 164 | T8: 4.1 | U8: Constant Voltage | V8: 110 | W8: 0.025 | X8: 0.05 | Y8: 0.075 | Z8: 0.1 | AA8: 0.125 | AB8: 0.15 | AC8: 0.175 | AD8: 0.2 | AE8: 0.225 | AF8: 0.25 | AG8: 0.275 | AH8: 0.3 | AI8: 0.325 | AJ8: 0.35 | AK8: 0.375 | AL8: 0.4 | AM8: 0.425 | AN8: 0.45 | AO8: 0.475 | AP8: 0.5 | AQ8: 0.525 | AR8: 0.55 | AS8: 0.575 | AT8: 0.6 | AU8: 0.625 | AV8: 0.65 | AW8: 0.675 | AX8: 0.7 | AY8: 0.725 | AZ8: 0.75 | BA8: 0.775 | BB8: 0.8 | BC8: 0.825 | BD8: 0.85 | BE8: 0.875 | BF8: 0.9 | BG8: 0.925 | BH8: 0.95 | BI8: 0.975 | BJ8: 1 | BK8: 1.025 | BL8: 1.05 | BM8: 1.075 | BN8: 1.1 | BO8: 1.125 | BP8: 1.15 | BQ8: 1.175 | BR8: 1.2 | BS8: 1.225 | BT8: 1.25 | BU8: 1.275 | BV8: 1.3 | BW8: 1.325 | BX8: 1.35 | BY8: 1.375 | BZ8: 1.4 | CA8: 1.425 | CB8: 1.45 | CC8: 1.475 | CD8: 1.5 | CE8: 1.525 | CF8: 1.55 | CG8: 1.575 | CH8: 1.6 | CI8: 1.625 | CJ8: 1.65 | CK8: 1.675 | CL8: 1.7 | CM8: 1.725 | CN8: 1.75 | CO8: 1.775 | CP8: 1.8 | CQ8: 1.825 | CR8: 1.85 | CS8: 1.875 | CT8: 1.9 | CU8: 1.925 | CV8: 1.95 | CW8: 1.975 | CX8: 2 | CY8: 2.025 | CZ8: 2.05 | DA8: 2.075 | DB8: 2.1 | DC8: 2.125 | DD8: 2.15 | DE8: 2.175 | DF8: 2.2 | DG8: 2.225 | DH8: 2.25 | DI8: 2.275 | DJ8: 2.3 | DK8: 2.325 | DL8: 2.35 | DM8: 2.375 | DN8: 2.4 | DO8: 2.425 | DP8: 2.45 | DQ8: 2.475 | DR8: 2.5 | DS8: 2.525 | DT8: 2.55 | DU8: 2.575 | DV8: 2.6 | DW8: 2.625 | DX8: 2.65 | DY8: 2.675 | DZ8: 2.7 | EA8: 2.725 | EB8: 2.75 | EC8: 2.775 | ED8: 2.8 | EE8: 2.825 | EF8: 2.85 | EG8: 2.875 | EH8: 2.9 | EI8: 2.925 | EJ8: 2.95 | EK8: 2.975 | EL8: 3 | EM8: 3.025 | EN8: 3.05 | EO8: 3.075 | EP8: 3.1 | EQ8: 3.125 | ER8: 3.15 | ES8: 3.175 | ET8: 3.2 | EU8: 3.225 | EV8: 3.25 | EW8: 3.275 | EX8: 3.3 | EY8: 3.325 | EZ8: 3.35 | FA8: 3.375 | FB8: 3.4 | FC8: 3.425 | FD8: 3.45 | FE8: 3.475 | FF8: 3.5 | FG8: 3.525 | FH8: 3.55 | FI8: 3.575 | FJ8: 3.6 | FK8: 3.625 | FL8: 3.65 | FM8: 3.675 | FN8: 3.7 | FO8: 3.725 | FP8: 3.75 | FQ8: 3.775 | FR8: 3.8 | FS8: 3.825 | FT8: 3.85 | FU8: 3.875 | FV8: 3.9 | FW8: 3.925 | FX8: 3.95 | FY8: 3.975 | FZ8: 4 | GA8: 4.025 | GB8: 4.05 | GC8: 4.075 | GD8: 4.1
B9: 0 | C9: 324.9 | D9: 105500 | E9: 82890 | F9: 0.09827 | H9: 9.827e-05 | O9: DL-AC-FLEX2-DTW | P9: 6 | Q9: 120 | R9: 0.05 | S9: 100 | T9: 5 | U9: Constant Current | V9: 112 | W9: =R9*$W$2 -> 0.05 | X9: 0.1 | Y9: 0.15 | Z9: 0.2 | AA9: 0.25 | AB9: 0.3 | AC9: 0.35 | AD9: 0.4 | AE9: 0.45 | AF9: 0.5 | AG9: 0.55 | AH9: 0.6 | AI9: 0.65 | AJ9: 0.7 | AK9: 0.75 | AL9: 0.8 | AM9: 0.85 | AN9: 0.9 | AO9: 0.95 | AP9: 1 | AQ9: 1.05 | AR9: 1.1 | AS9: 1.15 | AT9: 1.2 | AU9: 1.25 | AV9: 1.3 | AW9: 1.35 | AX9: 1.4 | AY9: 1.45 | AZ9: 1.5 | BA9: 1.55 | BB9: 1.6 | BC9: 1.65 | BD9: 1.7 | BE9: 1.75 | BF9: 1.8 | BG9: 1.85 | BH9: 1.9 | BI9: 1.95 | BJ9: 2 | BK9: 2.05 | BL9: 2.1 | BM9: 2.15 | BN9: 2.2 | BO9: 2.25 | BP9: 2.3 | BQ9: 2.35 | BR9: 2.4 | BS9: 2.45 | BT9: 2.5 | BU9: 2.55 | BV9: 2.6 | BW9: 2.65 | BX9: 2.7 | BY9: 2.75 | BZ9: 2.8 | CA9: 2.85 | CB9: 2.9 | CC9: 2.95 | CD9: 3 | CE9: 3.05 | CF9: 3.1 | CG9: 3.15 | CH9: 3.2 | CI9: 3.25 | CJ9: 3.3 | CK9: 3.35 | CL9: 3.4 | CM9: 3.45 | CN9: 3.5 | CO9: 3.55 | CP9: 3.6 | CQ9: 3.65 | CR9: 3.7 | CS9: 3.75 | CT9: 3.8 | CU9: 3.85 | CV9: 3.9 | CW9: 3.95 | CX9: 4 | CY9: 4.05 | CZ9: 4.1 | DA9: 4.15 | DB9: 4.2 | DC9: 4.25 | DD9: 4.3 | DE9: 4.35 | DF9: 4.4 | DG9: 4.45 | DH9: 4.5 | DI9: 4.55 | DJ9: 4.6 | DK9: 4.65 | DL9: 4.7 | DM9: 4.75 | DN9: 4.8 | DO9: 4.85 | DP9: 4.9 | DQ9: 4.95 | DR9: 5 | DS9: 5.05 | DT9: 5.1 | DU9: 5.15 | DV9: 5.2 | DW9: 5.25 | DX9: 5.3 | DY9: 5.35 | DZ9: 5.4 | EA9: 5.45 | EB9: 5.5 | EC9: 5.55 | ED9: 5.6 | EE9: 5.65 | EF9: 5.7 | EG9: 5.75 | EH9: 5.8 | EI9: 5.85 | EJ9: 5.9 | EK9: 5.95 | EL9: 6 | EM9: 6.05 | EN9: 6.1 | EO9: 6.15 | EP9: 6.2 | EQ9: 6.25 | ER9: 6.3 | ES9: 6.35 | ET9: 6.4 | EU9: 6.45 | EV9: 6.5 | EW9: 6.55 | EX9: 6.6 | EY9: 6.65 | EZ9: 6.7 | FA9: 6.75 | FB9: 6.8 | FC9: 6.85 | FD9: 6.9 | FE9: 6.95 | FF9: 7 | FG9: 7.05 | FH9: 7.1 | FI9: 7.15 | FJ9: 7.2 | FK9: 7.25 | FL9: 7.3 | FM9: 7.35 | FN9: 7.4 | FO9: 7.45 | FP9: 7.5 | FQ9: 7.55 | FR9: 7.6 | FS9: 7.65 | FT9: 7.7 | FU9: 7.75 | FV9: 7.8 | FW9: 7.85 | FX9: 7.9 | FY9: 7.95 | FZ9: 8 | GA9: 8.05 | GB9: 8.1 | GC9: 8.15 | GD9: 8.2
B10: 1 | C10: 289.3 | D10: 83690 | E10: 65730 | F10: 0.1239 | H10: 0.0001239 | O10: DL-AC-FLEX2-ST | P10: 3.5 | Q10: 120 | R10: 0.02916666667 | S10: 164 | T10: 4.783333333 | U10: Constant Current | V10: 112 | W10: 0.02916666667 | X10: 0.05833333333 | Y10: 0.0875 | Z10: 0.1166666667 | AA10: 0.1458333333 | AB10: 0.175 | AC10: 0.2041666667 | AD10: 0.2333333333 | AE10: 0.2625 | AF10: 0.2916666667 | AG10: 0.3208333333 | AH10: 0.35 | AI10: 0.3791666667 | AJ10: 0.4083333333 | AK10: 0.4375 | AL10: 0.4666666667 | AM10: 0.4958333333 | AN10: 0.525 | AO10: 0.5541666667 | AP10: 0.5833333333 | AQ10: 0.6125 | AR10: 0.6416666667 | AS10: 0.6708333333 | AT10: 0.7 | AU10: 0.7291666667 | AV10: 0.7583333333 | AW10: 0.7875 | AX10: 0.8166666667 | AY10: 0.8458333333 | AZ10: 0.875 | BA10: 0.9041666667 | BB10: 0.9333333333 | BC10: 0.9625 | BD10: 0.9916666667 | BE10: 1.020833333 | BF10: 1.05 | BG10: 1.079166667 | BH10: 1.108333333 | BI10: 1.1375 | BJ10: 1.166666667 | BK10: 1.195833333 | BL10: 1.225 | BM10: 1.254166667 | BN10: 1.283333333 | BO10: 1.3125 | BP10: 1.341666667 | BQ10: 1.370833333 | BR10: 1.4 | BS10: 1.429166667 | BT10: 1.458333333 | BU10: 1.4875 | BV10: 1.516666667 | BW10: 1.545833333 | BX10: 1.575 | BY10: 1.604166667 | BZ10: 1.633333333 | CA10: 1.6625 | CB10: 1.691666667 | CC10: 1.720833333 | CD10: 1.75 | CE10: 1.779166667 | CF10: 1.808333333 | CG10: 1.8375 | CH10: 1.866666667 | CI10: 1.895833333 | CJ10: 1.925 | CK10: 1.954166667 | CL10: 1.983333333 | CM10: 2.0125 | CN10: 2.041666667 | CO10: 2.070833333 | CP10: 2.1 | CQ10: 2.129166667 | CR10: 2.158333333 | CS10: 2.1875 | CT10: 2.216666667 | CU10: 2.245833333 | CV10: 2.275 | CW10: 2.304166667 | CX10: 2.333333333 | CY10: 2.3625 | CZ10: 2.391666667 | DA10: 2.420833333 | DB10: 2.45 | DC10: 2.479166667 | DD10: 2.508333333 | DE10: 2.5375 | DF10: 2.566666667 | DG10: 2.595833333 | DH10: 2.625 | DI10: 2.654166667 | DJ10: 2.683333333 | DK10: 2.7125 | DL10: 2.741666667 | DM10: 2.770833333 | DN10: 2.8 | DO10: 2.829166667 | DP10: 2.858333333 | DQ10: 2.8875 | DR10: 2.916666667 | DS10: 2.945833333 | DT10: 2.975 | DU10: 3.004166667 | DV10: 3.033333333 | DW10: 3.0625 | DX10: 3.091666667 | DY10: 3.120833333 | DZ10: 3.15 | EA10: 3.179166667 | EB10: 3.208333333 | EC10: 3.2375 | ED10: 3.266666667 | EE10: 3.295833333 | EF10: 3.325 | EG10: 3.354166667 | EH10: 3.383333333 | EI10: 3.4125 | EJ10: 3.441666667 | EK10: 3.470833333 | EL10: 3.5 | EM10: 3.529166667 | EN10: 3.558333333 | EO10: 3.5875 | EP10: 3.616666667 | EQ10: 3.645833333 | ER10: 3.675 | ES10: 3.704166667 | ET10: 3.733333333 | EU10: 3.7625 | EV10: 3.791666667 | EW10: 3.820833333 | EX10: 3.85 | EY10: 3.879166667 | EZ10: 3.908333333 | FA10: 3.9375 | FB10: 3.966666667 | FC10: 3.995833333 | FD10: 4.025 | FE10: 4.054166667 | FF10: 4.083333333 | FG10: 4.1125 | FH10: 4.141666667 | FI10: 4.170833333 | FJ10: 4.2 | FK10: 4.229166667 | FL10: 4.258333333 | FM10: 4.2875 | FN10: 4.316666667 | FO10: 4.345833333 | FP10: 4.375 | FQ10: 4.404166667 | FR10: 4.433333333 | FS10: 4.4625 | FT10: 4.491666667 | FU10: 4.520833333 | FV10: 4.55 | FW10: 4.579166667 | FX10: 4.608333333 | FY10: 4.6375 | FZ10: 4.666666667 | GA10: 4.695833333 | GB10: 4.725 | GC10: 4.754166667 | GD10: 4.783333333
B11: 2 | C11: 257.6 | D11: 66370 | E11: 52130 | F11: 0.1563 | H11: 0.0001563 | O11: DL-AC-FLEX2-NPX | P11: 6 | Q11: 120 | R11: 0.05 | S11: 100 | T11: 5 | U11: Constant Current | V11: 112 | W11: 0.05 | X11: 0.1 | Y11: 0.15 | Z11: 0.2 | AA11: 0.25 | AB11: 0.3 | AC11: 0.35 | AD11: 0.4 | AE11: 0.45 | AF11: 0.5 | AG11: 0.55 | AH11: 0.6 | AI11: 0.65 | AJ11: 0.7 | AK11: 0.75 | AL11: 0.8 | AM11: 0.85 | AN11: 0.9 | AO11: 0.95 | AP11: 1 | AQ11: 1.05 | AR11: 1.1 | AS11: 1.15 | AT11: 1.2 | AU11: 1.25 | AV11: 1.3 | AW11: 1.35 | AX11: 1.4 | AY11: 1.45 | AZ11: 1.5 | BA11: 1.55 | BB11: 1.6 | BC11: 1.65 | BD11: 1.7 | BE11: 1.75 | BF11: 1.8 | BG11: 1.85 | BH11: 1.9 | BI11: 1.95 | BJ11: 2 | BK11: 2.05 | BL11: 2.1 | BM11: 2.15 | BN11: 2.2 | BO11: 2.25 | BP11: 2.3 | BQ11: 2.35 | BR11: 2.4 | BS11: 2.45 | BT11: 2.5 | BU11: 2.55 | BV11: 2.6 | BW11: 2.65 | BX11: 2.7 | BY11: 2.75 | BZ11: 2.8 | CA11: 2.85 | CB11: 2.9 | CC11: 2.95 | CD11: 3 | CE11: 3.05 | CF11: 3.1 | CG11: 3.15 | CH11: 3.2 | CI11: 3.25 | CJ11: 3.3 | CK11: 3.35 | CL11: 3.4 | CM11: 3.45 | CN11: 3.5 | CO11: 3.55 | CP11: 3.6 | CQ11: 3.65 | CR11: 3.7 | CS11: 3.75 | CT11: 3.8 | CU11: 3.85 | CV11: 3.9 | CW11: 3.95 | CX11: 4 | CY11: 4.05 | CZ11: 4.1 | DA11: 4.15 | DB11: 4.2 | DC11: 4.25 | DD11: 4.3 | DE11: 4.35 | DF11: 4.4 | DG11: 4.45 | DH11: 4.5 | DI11: 4.55 | DJ11: 4.6 | DK11: 4.65 | DL11: 4.7 | DM11: 4.75 | DN11: 4.8 | DO11: 4.85 | DP11: 4.9 | DQ11: 4.95 | DR11: 5 | DS11: 5.05 | DT11: 5.1 | DU11: 5.15 | DV11: 5.2 | DW11: 5.25 | DX11: 5.3 | DY11: 5.35 | DZ11: 5.4 | EA11: 5.45 | EB11: 5.5 | EC11: 5.55 | ED11: 5.6 | EE11: 5.65 | EF11: 5.7 | EG11: 5.75 | EH11: 5.8 | EI11: 5.85 | EJ11: 5.9 | EK11: 5.95 | EL11: 6 | EM11: 6.05 | EN11: 6.1 | EO11: 6.15 | EP11: 6.2 | EQ11: 6.25 | ER11: 6.3 | ES11: 6.35 | ET11: 6.4 | EU11: 6.45 | EV11: 6.5 | EW11: 6.55 | EX11: 6.6 | EY11: 6.65 | EZ11: 6.7 | FA11: 6.75 | FB11: 6.8 | FC11: 6.85 | FD11: 6.9 | FE11: 6.95 | FF11: 7 | FG11: 7.05 | FH11: 7.1 | FI11: 7.15 | FJ11: 7.2 | FK11: 7.25 | FL11: 7.3 | FM11: 7.35 | FN11: 7.4 | FO11: 7.45 | FP11: 7.5 | FQ11: 7.55 | FR11: 7.6 | FS11: 7.65 | FT11: 7.7 | FU11: 7.75 | FV11: 7.8 | FW11: 7.85 | FX11: 7.9 | FY11: 7.95 | FZ11: 8 | GA11: 8.05 | GB11: 8.1 | GC11: 8.15 | GD11: 8.2
B12: 3 | C12: 229.4 | D12: 52640 | E12: 41340 | F12: 0.197 | H12: 0.000197 | O12: DL-AC-FLEX2-BEAM | P12: 6 | Q12: 120 | R12: 0.05 | S12: 100 | T12: 5 | U12: Constant Current | V12: 112 | W12: 0.05 | X12: 0.1 | Y12: 0.15 | Z12: 0.2 | AA12: 0.25 | AB12: 0.3 | AC12: 0.35 | AD12: 0.4 | AE12: 0.45 | AF12: 0.5 | AG12: 0.55 | AH12: 0.6 | AI12: 0.65 | AJ12: 0.7 | AK12: 0.75 | AL12: 0.8 | AM12: 0.85 | AN12: 0.9 | AO12: 0.95 | AP12: 1 | AQ12: 1.05 | AR12: 1.1 | AS12: 1.15 | AT12: 1.2 | AU12: 1.25 | AV12: 1.3 | AW12: 1.35 | AX12: 1.4 | AY12: 1.45 | AZ12: 1.5 | BA12: 1.55 | BB12: 1.6 | BC12: 1.65 | BD12: 1.7 | BE12: 1.75 | BF12: 1.8 | BG12: 1.85 | BH12: 1.9 | BI12: 1.95 | BJ12: 2 | BK12: 2.05 | BL12: 2.1 | BM12: 2.15 | BN12: 2.2 | BO12: 2.25 | BP12: 2.3 | BQ12: 2.35 | BR12: 2.4 | BS12: 2.45 | BT12: 2.5 | BU12: 2.55 | BV12: 2.6 | BW12: 2.65 | BX12: 2.7 | BY12: 2.75 | BZ12: 2.8 | CA12: 2.85 | CB12: 2.9 | CC12: 2.95 | CD12: 3 | CE12: 3.05 | CF12: 3.1 | CG12: 3.15 | CH12: 3.2 | CI12: 3.25 | CJ12: 3.3 | CK12: 3.35 | CL12: 3.4 | CM12: 3.45 | CN12: 3.5 | CO12: 3.55 | CP12: 3.6 | CQ12: 3.65 | CR12: 3.7 | CS12: 3.75 | CT12: 3.8 | CU12: 3.85 | CV12: 3.9 | CW12: 3.95 | CX12: 4 | CY12: 4.05 | CZ12: 4.1 | DA12: 4.15 | DB12: 4.2 | DC12: 4.25 | DD12: 4.3 | DE12: 4.35 | DF12: 4.4 | DG12: 4.45 | DH12: 4.5 | DI12: 4.55 | DJ12: 4.6 | DK12: 4.65 | DL12: 4.7 | DM12: 4.75 | DN12: 4.8 | DO12: 4.85 | DP12: 4.9 | DQ12: 4.95 | DR12: 5 | DS12: 5.05 | DT12: 5.1 | DU12: 5.15 | DV12: 5.2 | DW12: 5.25 | DX12: 5.3 | DY12: 5.35 | DZ12: 5.4 | EA12: 5.45 | EB12: 5.5 | EC12: 5.55 | ED12: 5.6 | EE12: 5.65 | EF12: 5.7 | EG12: 5.75 | EH12: 5.8 | EI12: 5.85 | EJ12: 5.9 | EK12: 5.95 | EL12: 6 | EM12: 6.05 | EN12: 6.1 | EO12: 6.15 | EP12: 6.2 | EQ12: 6.25 | ER12: 6.3 | ES12: 6.35 | ET12: 6.4 | EU12: 6.45 | EV12: 6.5 | EW12: 6.55 | EX12: 6.6 | EY12: 6.65 | EZ12: 6.7 | FA12: 6.75 | FB12: 6.8 | FC12: 6.85 | FD12: 6.9 | FE12: 6.95 | FF12: 7 | FG12: 7.05 | FH12: 7.1 | FI12: 7.15 | FJ12: 7.2 | FK12: 7.25 | FL12: 7.3 | FM12: 7.35 | FN12: 7.4 | FO12: 7.45 | FP12: 7.5 | FQ12: 7.55 | FR12: 7.6 | FS12: 7.65 | FT12: 7.7 | FU12: 7.75 | FV12: 7.8 | FW12: 7.85 | FX12: 7.9 | FY12: 7.95 | FZ12: 8 | GA12: 8.05 | GB12: 8.1 | GC12: 8.15 | GD12: 8.2
B13: 4 | C13: 204.3 | D13: 41740 | E13: 32780 | F13: 0.2485 | H13: 0.0002485 | O13: DL-AC-FLEX2-LNTB | P13: 2.7 | Q13: 120 | R13: 0.0225 | S13: 164 | T13: 3.69 | U13: Constant Current | V13: 112 | W13: 0.0225 | X13: 0.045 | Y13: 0.0675 | Z13: 0.09 | AA13: 0.1125 | AB13: 0.135 | AC13: 0.1575 | AD13: 0.18 | AE13: 0.2025 | AF13: 0.225 | AG13: 0.2475 | AH13: 0.27 | AI13: 0.2925 | AJ13: 0.315 | AK13: 0.3375 | AL13: 0.36 | AM13: 0.3825 | AN13: 0.405 | AO13: 0.4275 | AP13: 0.45 | AQ13: 0.4725 | AR13: 0.495 | AS13: 0.5175 | AT13: 0.54 | AU13: 0.5625 | AV13: 0.585 | AW13: 0.6075 | AX13: 0.63 | AY13: 0.6525 | AZ13: 0.675 | BA13: 0.6975 | BB13: 0.72 | BC13: 0.7425 | BD13: 0.765 | BE13: 0.7875 | BF13: 0.81 | BG13: 0.8325 | BH13: 0.855 | BI13: 0.8775 | BJ13: 0.9 | BK13: 0.9225 | BL13: 0.945 | BM13: 0.9675 | BN13: 0.99 | BO13: 1.0125 | BP13: 1.035 | BQ13: 1.0575 | BR13: 1.08 | BS13: 1.1025 | BT13: 1.125 | BU13: 1.1475 | BV13: 1.17 | BW13: 1.1925 | BX13: 1.215 | BY13: 1.2375 | BZ13: 1.26 | CA13: 1.2825 | CB13: 1.305 | CC13: 1.3275 | CD13: 1.35 | CE13: 1.3725 | CF13: 1.395 | CG13: 1.4175 | CH13: 1.44 | CI13: 1.4625 | CJ13: 1.485 | CK13: 1.5075 | CL13: 1.53 | CM13: 1.5525 | CN13: 1.575 | CO13: 1.5975 | CP13: 1.62 | CQ13: 1.6425 | CR13: 1.665 | CS13: 1.6875 | CT13: 1.71 | CU13: 1.7325 | CV13: 1.755 | CW13: 1.7775 | CX13: 1.8 | CY13: 1.8225 | CZ13: 1.845 | DA13: 1.8675 | DB13: 1.89 | DC13: 1.9125 | DD13: 1.935 | DE13: 1.9575 | DF13: 1.98 | DG13: 2.0025 | DH13: 2.025 | DI13: 2.0475 | DJ13: 2.07 | DK13: 2.0925 | DL13: 2.115 | DM13: 2.1375 | DN13: 2.16 | DO13: 2.1825 | DP13: 2.205 | DQ13: 2.2275 | DR13: 2.25 | DS13: 2.2725 | DT13: 2.295 | DU13: 2.3175 | DV13: 2.34 | DW13: 2.3625 | DX13: 2.385 | DY13: 2.4075 | DZ13: 2.43 | EA13: 2.4525 | EB13: 2.475 | EC13: 2.4975 | ED13: 2.52 | EE13: 2.5425 | EF13: 2.565 | EG13: 2.5875 | EH13: 2.61 | EI13: 2.6325 | EJ13: 2.655 | EK13: 2.6775 | EL13: 2.7 | EM13: 2.7225 | EN13: 2.745 | EO13: 2.7675 | EP13: 2.79 | EQ13: 2.8125 | ER13: 2.835 | ES13: 2.8575 | ET13: 2.88 | EU13: 2.9025 | EV13: 2.925 | EW13: 2.9475 | EX13: 2.97 | EY13: 2.9925 | EZ13: 3.015 | FA13: 3.0375 | FB13: 3.06 | FC13: 3.0825 | FD13: 3.105 | FE13: 3.1275 | FF13: 3.15 | FG13: 3.1725 | FH13: 3.195 | FI13: 3.2175 | FJ13: 3.24 | FK13: 3.2625 | FL13: 3.285 | FM13: 3.3075 | FN13: 3.33 | FO13: 3.3525 | FP13: 3.375 | FQ13: 3.3975 | FR13: 3.42 | FS13: 3.4425 | FT13: 3.465 | FU13: 3.4875 | FV13: 3.51 | FW13: 3.5325 | FX13: 3.555 | FY13: 3.5775 | FZ13: 3.6 | GA13: 3.6225 | GB13: 3.645 | GC13: 3.6675 | GD13: 3.69
B14: 5 | C14: 181.9 | D14: 33100 | E14: 26000 | F14: 0.3133 | H14: 0.0003133 | O14: DL-AC-FLEX2-LNSB | P14: 2.7 | Q14: 120 | R14: 0.0225 | S14: 164 | T14: 3.69 | U14: Constant Current | V14: 112 | W14: 0.0225 | X14: 0.045 | Y14: 0.0675 | Z14: 0.09 | AA14: 0.1125 | AB14: 0.135 | AC14: 0.1575 | AD14: 0.18 | AE14: 0.2025 | AF14: 0.225 | AG14: 0.2475 | AH14: 0.27 | AI14: 0.2925 | AJ14: 0.315 | AK14: 0.3375 | AL14: 0.36 | AM14: 0.3825 | AN14: 0.405 | AO14: 0.4275 | AP14: 0.45 | AQ14: 0.4725 | AR14: 0.495 | AS14: 0.5175 | AT14: 0.54 | AU14: 0.5625 | AV14: 0.585 | AW14: 0.6075 | AX14: 0.63 | AY14: 0.6525 | AZ14: 0.675 | BA14: 0.6975 | BB14: 0.72 | BC14: 0.7425 | BD14: 0.765 | BE14: 0.7875 | BF14: 0.81 | BG14: 0.8325 | BH14: 0.855 | BI14: 0.8775 | BJ14: 0.9 | BK14: 0.9225 | BL14: 0.945 | BM14: 0.9675 | BN14: 0.99 | BO14: 1.0125 | BP14: 1.035 | BQ14: 1.0575 | BR14: 1.08 | BS14: 1.1025 | BT14: 1.125 | BU14: 1.1475 | BV14: 1.17 | BW14: 1.1925 | BX14: 1.215 | BY14: 1.2375 | BZ14: 1.26 | CA14: 1.2825 | CB14: 1.305 | CC14: 1.3275 | CD14: 1.35 | CE14: 1.3725 | CF14: 1.395 | CG14: 1.4175 | CH14: 1.44 | CI14: 1.4625 | CJ14: 1.485 | CK14: 1.5075 | CL14: 1.53 | CM14: 1.5525 | CN14: 1.575 | CO14: 1.5975 | CP14: 1.62 | CQ14: 1.6425 | CR14: 1.665 | CS14: 1.6875 | CT14: 1.71 | CU14: 1.7325 | CV14: 1.755 | CW14: 1.7775 | CX14: 1.8 | CY14: 1.8225 | CZ14: 1.845 | DA14: 1.8675 | DB14: 1.89 | DC14: 1.9125 | DD14: 1.935 | DE14: 1.9575 | DF14: 1.98 | DG14: 2.0025 | DH14: 2.025 | DI14: 2.0475 | DJ14: 2.07 | DK14: 2.0925 | DL14: 2.115 | DM14: 2.1375 | DN14: 2.16 | DO14: 2.1825 | DP14: 2.205 | DQ14: 2.2275 | DR14: 2.25 | DS14: 2.2725 | DT14: 2.295 | DU14: 2.3175 | DV14: 2.34 | DW14: 2.3625 | DX14: 2.385 | DY14: 2.4075 | DZ14: 2.43 | EA14: 2.4525 | EB14: 2.475 | EC14: 2.4975 | ED14: 2.52 | EE14: 2.5425 | EF14: 2.565 | EG14: 2.5875 | EH14: 2.61 | EI14: 2.6325 | EJ14: 2.655 | EK14: 2.6775 | EL14: 2.7 | EM14: 2.7225 | EN14: 2.745 | EO14: 2.7675 | EP14: 2.79 | EQ14: 2.8125 | ER14: 2.835 | ES14: 2.8575 | ET14: 2.88 | EU14: 2.9025 | EV14: 2.925 | EW14: 2.9475 | EX14: 2.97 | EY14: 2.9925 | EZ14: 3.015 | FA14: 3.0375 | FB14: 3.06 | FC14: 3.0825 | FD14: 3.105 | FE14: 3.1275 | FF14: 3.15 | FG14: 3.1725 | FH14: 3.195 | FI14: 3.2175 | FJ14: 3.24 | FK14: 3.2625 | FL14: 3.285 | FM14: 3.3075 | FN14: 3.33 | FO14: 3.3525 | FP14: 3.375 | FQ14: 3.3975 | FR14: 3.42 | FS14: 3.4425 | FT14: 3.465 | FU14: 3.4875 | FV14: 3.51 | FW14: 3.5325 | FX14: 3.555 | FY14: 3.5775 | FZ14: 3.6 | GA14: 3.6225 | GB14: 3.645 | GC14: 3.6675 | GD14: 3.69
B15: 6 | C15: 162 | D15: 26250 | E15: 20620 | F15: 0.3951 | H15: 0.0003951 | O15: DL-AC-FLEX2-LNDB-RGB | P15: 4.3 | Q15: 120 | R15: 0.03583333333 | S15: 130 | T15: 4.658333333 | U15: Constant Voltage | V15: 110 | W15: 0.03583333333 | X15: 0.07166666667 | Y15: 0.1075 | Z15: 0.1433333333 | AA15: 0.1791666667 | AB15: 0.215 | AC15: 0.2508333333 | AD15: 0.2866666667 | AE15: 0.3225 | AF15: 0.3583333333 | AG15: 0.3941666667 | AH15: 0.43 | AI15: 0.4658333333 | AJ15: 0.5016666667 | AK15: 0.5375 | AL15: 0.5733333333 | AM15: 0.6091666667 | AN15: 0.645 | AO15: 0.6808333333 | AP15: 0.7166666667 | AQ15: 0.7525 | AR15: 0.7883333333 | AS15: 0.8241666667 | AT15: 0.86 | AU15: 0.8958333333 | AV15: 0.9316666667 | AW15: 0.9675 | AX15: 1.003333333 | AY15: 1.039166667 | AZ15: 1.075 | BA15: 1.110833333 | BB15: 1.146666667 | BC15: 1.1825 | BD15: 1.218333333 | BE15: 1.254166667 | BF15: 1.29 | BG15: 1.325833333 | BH15: 1.361666667 | BI15: 1.3975 | BJ15: 1.433333333 | BK15: 1.469166667 | BL15: 1.505 | BM15: 1.540833333 | BN15: 1.576666667 | BO15: 1.6125 | BP15: 1.648333333 | BQ15: 1.684166667 | BR15: 1.72 | BS15: 1.755833333 | BT15: 1.791666667 | BU15: 1.8275 | BV15: 1.863333333 | BW15: 1.899166667 | BX15: 1.935 | BY15: 1.970833333 | BZ15: 2.006666667 | CA15: 2.0425 | CB15: 2.078333333 | CC15: 2.114166667 | CD15: 2.15 | CE15: 2.185833333 | CF15: 2.221666667 | CG15: 2.2575 | CH15: 2.293333333 | CI15: 2.329166667 | CJ15: 2.365 | CK15: 2.400833333 | CL15: 2.436666667 | CM15: 2.4725 | CN15: 2.508333333 | CO15: 2.544166667 | CP15: 2.58 | CQ15: 2.615833333 | CR15: 2.651666667 | CS15: 2.6875 | CT15: 2.723333333 | CU15: 2.759166667 | CV15: 2.795 | CW15: 2.830833333 | CX15: 2.866666667 | CY15: 2.9025 | CZ15: 2.938333333 | DA15: 2.974166667 | DB15: 3.01 | DC15: 3.045833333 | DD15: 3.081666667 | DE15: 3.1175 | DF15: 3.153333333 | DG15: 3.189166667 | DH15: 3.225 | DI15: 3.260833333 | DJ15: 3.296666667 | DK15: 3.3325 | DL15: 3.368333333 | DM15: 3.404166667 | DN15: 3.44 | DO15: 3.475833333 | DP15: 3.511666667 | DQ15: 3.5475 | DR15: 3.583333333 | DS15: 3.619166667 | DT15: 3.655 | DU15: 3.690833333 | DV15: 3.726666667 | DW15: 3.7625 | DX15: 3.798333333 | DY15: 3.834166667 | DZ15: 3.87 | EA15: 3.905833333 | EB15: 3.941666667 | EC15: 3.9775 | ED15: 4.013333333 | EE15: 4.049166667 | EF15: 4.085 | EG15: 4.120833333 | EH15: 4.156666667 | EI15: 4.1925 | EJ15: 4.228333333 | EK15: 4.264166667 | EL15: 4.3 | EM15: 4.335833333 | EN15: 4.371666667 | EO15: 4.4075 | EP15: 4.443333333 | EQ15: 4.479166667 | ER15: 4.515 | ES15: 4.550833333 | ET15: 4.586666667 | EU15: 4.6225 | EV15: 4.658333333 | EW15: 4.694166667 | EX15: 4.73 | EY15: 4.765833333 | EZ15: 4.801666667 | FA15: 4.8375 | FB15: 4.873333333 | FC15: 4.909166667 | FD15: 4.945 | FE15: 4.980833333 | FF15: 5.016666667 | FG15: 5.0525 | FH15: 5.088333333 | FI15: 5.124166667 | FJ15: 5.16 | FK15: 5.195833333 | FL15: 5.231666667 | FM15: 5.2675 | FN15: 5.303333333 | FO15: 5.339166667 | FP15: 5.375 | FQ15: 5.410833333 | FR15: 5.446666667 | FS15: 5.4825 | FT15: 5.518333333 | FU15: 5.554166667 | FV15: 5.59 | FW15: 5.625833333 | FX15: 5.661666667 | FY15: 5.6975 | FZ15: 5.733333333 | GA15: 5.769166667 | GB15: 5.805 | GC15: 5.840833333 | GD15: 5.876666667
B16: 7 | C16: 144.3 | D16: 20820 | E16: 16350 | F16: 0.4982 | H16: 0.0004982 | W16: 0 | X16: 0 | Y16: 0 | Z16: 0 | AA16: 0 | AB16: 0 | AC16: 0 | AD16: 0 | AE16: 0 | AF16: 0 | AG16: 0 | AH16: 0 | AI16: 0 | AJ16: 0 | AK16: 0 | AL16: 0 | AM16: 0 | AN16: 0 | AO16: 0 | AP16: 0 | AQ16: 0 | AR16: 0 | AS16: 0 | AT16: 0 | AU16: 0 | AV16: 0 | AW16: 0 | AX16: 0 | AY16: 0 | AZ16: 0 | BA16: 0 | BB16: 0 | BC16: 0 | BD16: 0 | BE16: 0 | BF16: 0 | BG16: 0 | BH16: 0 | BI16: 0 | BJ16: 0 | BK16: 0 | BL16: 0 | BM16: 0 | BN16: 0 | BO16: 0 | BP16: 0 | BQ16: 0 | BR16: 0 | BS16: 0 | BT16: 0 | BU16: 0 | BV16: 0 | BW16: 0 | BX16: 0 | BY16: 0 | BZ16: 0 | CA16: 0 | CB16: 0 | CC16: 0 | CD16: 0 | CE16: 0 | CF16: 0 | CG16: 0 | CH16: 0 | CI16: 0 | CJ16: 0 | CK16: 0 | CL16: 0 | CM16: 0 | CN16: 0 | CO16: 0 | CP16: 0 | CQ16: 0 | CR16: 0 | CS16: 0 | CT16: 0 | CU16: 0 | CV16: 0 | CW16: 0 | CX16: 0 | CY16: 0 | CZ16: 0 | DA16: 0 | DB16: 0 | DC16: 0 | DD16: 0 | DE16: 0 | DF16: 0 | DG16: 0 | DH16: 0 | DI16: 0 | DJ16: 0 | DK16: 0 | DL16: 0 | DM16: 0 | DN16: 0 | DO16: 0 | DP16: 0 | DQ16: 0 | DR16: 0 | DS16: 0 | DT16: 0 | DU16: 0 | DV16: 0 | DW16: 0 | DX16: 0 | DY16: 0 | DZ16: 0 | EA16: 0 | EB16: 0 | EC16: 0 | ED16: 0 | EE16: 0 | EF16: 0 | EG16: 0 | EH16: 0 | EI16: 0 | EJ16: 0 | EK16: 0 | EL16: 0 | EM16: 0 | EN16: 0 | EO16: 0 | EP16: 0 | EQ16: 0 | ER16: 0 | ES16: 0 | ET16: 0 | EU16: 0 | EV16: 0 | EW16: 0 | EX16: 0 | EY16: 0 | EZ16: 0 | FA16: 0 | FB16: 0 | FC16: 0 | FD16: 0 | FE16: 0 | FF16: 0 | FG16: 0 | FH16: 0 | FI16: 0 | FJ16: 0 | FK16: 0 | FL16: 0 | FM16: 0 | FN16: 0 | FO16: 0 | FP16: 0 | FQ16: 0 | FR16: 0 | FS16: 0 | FT16: 0 | FU16: 0 | FV16: 0 | FW16: 0 | FX16: 0 | FY16: 0 | FZ16: 0 | GA16: 0 | GB16: 0 | GC16: 0 | GD16: 0
B17: 8 | C17: 128.5 | D17: 16510 | E17: 12970 | F17: 0.6282 | H17: 0.0006282 | W17: 0 | X17: 0 | Y17: 0 | Z17: 0 | AA17: 0 | AB17: 0 | AC17: 0 | AD17: 0 | AE17: 0 | AF17: 0 | AG17: 0 | AH17: 0 | AI17: 0 | AJ17: 0 | AK17: 0 | AL17: 0 | AM17: 0 | AN17: 0 | AO17: 0 | AP17: 0 | AQ17: 0 | AR17: 0 | AS17: 0 | AT17: 0 | AU17: 0 | AV17: 0 | AW17: 0 | AX17: 0 | AY17: 0 | AZ17: 0 | BA17: 0 | BB17: 0 | BC17: 0 | BD17: 0 | BE17: 0 | BF17: 0 | BG17: 0 | BH17: 0 | BI17: 0 | BJ17: 0 | BK17: 0 | BL17: 0 | BM17: 0 | BN17: 0 | BO17: 0 | BP17: 0 | BQ17: 0 | BR17: 0 | BS17: 0 | BT17: 0 | BU17: 0 | BV17: 0 | BW17: 0 | BX17: 0 | BY17: 0 | BZ17: 0 | CA17: 0 | CB17: 0 | CC17: 0 | CD17: 0 | CE17: 0 | CF17: 0 | CG17: 0 | CH17: 0 | CI17: 0 | CJ17: 0 | CK17: 0 | CL17: 0 | CM17: 0 | CN17: 0 | CO17: 0 | CP17: 0 | CQ17: 0 | CR17: 0 | CS17: 0 | CT17: 0 | CU17: 0 | CV17: 0 | CW17: 0 | CX17: 0 | CY17: 0 | CZ17: 0 | DA17: 0 | DB17: 0 | DC17: 0 | DD17: 0 | DE17: 0 | DF17: 0 | DG17: 0 | DH17: 0 | DI17: 0 | DJ17: 0 | DK17: 0 | DL17: 0 | DM17: 0 | DN17: 0 | DO17: 0 | DP17: 0 | DQ17: 0 | DR17: 0 | DS17: 0 | DT17: 0 | DU17: 0 | DV17: 0 | DW17: 0 | DX17: 0 | DY17: 0 | DZ17: 0 | EA17: 0 | EB17: 0 | EC17: 0 | ED17: 0 | EE17: 0 | EF17: 0 | EG17: 0 | EH17: 0 | EI17: 0 | EJ17: 0 | EK17: 0 | EL17: 0 | EM17: 0 | EN17: 0 | EO17: 0 | EP17: 0 | EQ17: 0 | ER17: 0 | ES17: 0 | ET17: 0 | EU17: 0 | EV17: 0 | EW17: 0 | EX17: 0 | EY17: 0 | EZ17: 0 | FA17: 0 | FB17: 0 | FC17: 0 | FD17: 0 | FE17: 0 | FF17: 0 | FG17: 0 | FH17: 0 | FI17: 0 | FJ17: 0 | FK17: 0 | FL17: 0 | FM17: 0 | FN17: 0 | FO17: 0 | FP17: 0 | FQ17: 0 | FR17: 0 | FS17: 0 | FT17: 0 | FU17: 0 | FV17: 0 | FW17: 0 | FX17: 0 | FY17: 0 | FZ17: 0 | GA17: 0 | GB17: 0 | GC17: 0 | GD17: 0
B18: 9 | C18: 114.4 | D18: 13090 | E18: 10280 | F18: 0.7921 | H18: 0.0007921 | W18: 0 | X18: 0 | Y18: 0 | Z18: 0 | AA18: 0 | AB18: 0 | AC18: 0 | AD18: 0 | AE18: 0 | AF18: 0 | AG18: 0 | AH18: 0 | AI18: 0 | AJ18: 0 | AK18: 0 | AL18: 0 | AM18: 0 | AN18: 0 | AO18: 0 | AP18: 0 | AQ18: 0 | AR18: 0 | AS18: 0 | AT18: 0 | AU18: 0 | AV18: 0 | AW18: 0 | AX18: 0 | AY18: 0 | AZ18: 0 | BA18: 0 | BB18: 0 | BC18: 0 | BD18: 0 | BE18: 0 | BF18: 0 | BG18: 0 | BH18: 0 | BI18: 0 | BJ18: 0 | BK18: 0 | BL18: 0 | BM18: 0 | BN18: 0 | BO18: 0 | BP18: 0 | BQ18: 0 | BR18: 0 | BS18: 0 | BT18: 0 | BU18: 0 | BV18: 0 | BW18: 0 | BX18: 0 | BY18: 0 | BZ18: 0 | CA18: 0 | CB18: 0 | CC18: 0 | CD18: 0 | CE18: 0 | CF18: 0 | CG18: 0 | CH18: 0 | CI18: 0 | CJ18: 0 | CK18: 0 | CL18: 0 | CM18: 0 | CN18: 0 | CO18: 0 | CP18: 0 | CQ18: 0 | CR18: 0 | CS18: 0 | CT18: 0 | CU18: 0 | CV18: 0 | CW18: 0 | CX18: 0 | CY18: 0 | CZ18: 0 | DA18: 0 | DB18: 0 | DC18: 0 | DD18: 0 | DE18: 0 | DF18: 0 | DG18: 0 | DH18: 0 | DI18: 0 | DJ18: 0 | DK18: 0 | DL18: 0 | DM18: 0 | DN18: 0 | DO18: 0 | DP18: 0 | DQ18: 0 | DR18: 0 | DS18: 0 | DT18: 0 | DU18: 0 | DV18: 0 | DW18: 0 | DX18: 0 | DY18: 0 | DZ18: 0 | EA18: 0 | EB18: 0 | EC18: 0 | ED18: 0 | EE18: 0 | EF18: 0 | EG18: 0 | EH18: 0 | EI18: 0 | EJ18: 0 | EK18: 0 | EL18: 0 | EM18: 0 | EN18: 0 | EO18: 0 | EP18: 0 | EQ18: 0 | ER18: 0 | ES18: 0 | ET18: 0 | EU18: 0 | EV18: 0 | EW18: 0 | EX18: 0 | EY18: 0 | EZ18: 0 | FA18: 0 | FB18: 0 | FC18: 0 | FD18: 0 | FE18: 0 | FF18: 0 | FG18: 0 | FH18: 0 | FI18: 0 | FJ18: 0 | FK18: 0 | FL18: 0 | FM18: 0 | FN18: 0 | FO18: 0 | FP18: 0 | FQ18: 0 | FR18: 0 | FS18: 0 | FT18: 0 | FU18: 0 | FV18: 0 | FW18: 0 | FX18: 0 | FY18: 0 | FZ18: 0 | GA18: 0 | GB18: 0 | GC18: 0 | GD18: 0
B19: 10 | C19: 101.9 | D19: 10380 | E19: 8155 | F19: 0.9989 | H19: 0.0009989 | W19: 0 | X19: 0 | Y19: 0 | Z19: 0 | AA19: 0 | AB19: 0 | AC19: 0 | AD19: 0 | AE19: 0 | AF19: 0 | AG19: 0 | AH19: 0 | AI19: 0 | AJ19: 0 | AK19: 0 | AL19: 0 | AM19: 0 | AN19: 0 | AO19: 0 | AP19: 0 | AQ19: 0 | AR19: 0 | AS19: 0 | AT19: 0 | AU19: 0 | AV19: 0 | AW19: 0 | AX19: 0 | AY19: 0 | AZ19: 0 | BA19: 0 | BB19: 0 | BC19: 0 | BD19: 0 | BE19: 0 | BF19: 0 | BG19: 0 | BH19: 0 | BI19: 0 | BJ19: 0 | BK19: 0 | BL19: 0 | BM19: 0 | BN19: 0 | BO19: 0 | BP19: 0 | BQ19: 0 | BR19: 0 | BS19: 0 | BT19: 0 | BU19: 0 | BV19: 0 | BW19: 0 | BX19: 0 | BY19: 0 | BZ19: 0 | CA19: 0 | CB19: 0 | CC19: 0 | CD19: 0 | CE19: 0 | CF19: 0 | CG19: 0 | CH19: 0 | CI19: 0 | CJ19: 0 | CK19: 0 | CL19: 0 | CM19: 0 | CN19: 0 | CO19: 0 | CP19: 0 | CQ19: 0 | CR19: 0 | CS19: 0 | CT19: 0 | CU19: 0 | CV19: 0 | CW19: 0 | CX19: 0 | CY19: 0 | CZ19: 0 | DA19: 0 | DB19: 0 | DC19: 0 | DD19: 0 | DE19: 0 | DF19: 0 | DG19: 0 | DH19: 0 | DI19: 0 | DJ19: 0 | DK19: 0 | DL19: 0 | DM19: 0 | DN19: 0 | DO19: 0 | DP19: 0 | DQ19: 0 | DR19: 0 | DS19: 0 | DT19: 0 | DU19: 0 | DV19: 0 | DW19: 0 | DX19: 0 | DY19: 0 | DZ19: 0 | EA19: 0 | EB19: 0 | EC19: 0 | ED19: 0 | EE19: 0 | EF19: 0 | EG19: 0 | EH19: 0 | EI19: 0 | EJ19: 0 | EK19: 0 | EL19: 0 | EM19: 0 | EN19: 0 | EO19: 0 | EP19: 0 | EQ19: 0 | ER19: 0 | ES19: 0 | ET19: 0 | EU19: 0 | EV19: 0 | EW19: 0 | EX19: 0 | EY19: 0 | EZ19: 0 | FA19: 0 | FB19: 0 | FC19: 0 | FD19: 0 | FE19: 0 | FF19: 0 | FG19: 0 | FH19: 0 | FI19: 0 | FJ19: 0 | FK19: 0 | FL19: 0 | FM19: 0 | FN19: 0 | FO19: 0 | FP19: 0 | FQ19: 0 | FR19: 0 | FS19: 0 | FT19: 0 | FU19: 0 | FV19: 0 | FW19: 0 | FX19: 0 | FY19: 0 | FZ19: 0 | GA19: 0 | GB19: 0 | GC19: 0 | GD19: 0
B20: 11 | C20: 90.74 | D20: 8234 | E20: 6467 | F20: 1.26 | H20: 0.00126 | W20: 0 | X20: 0 | Y20: 0 | Z20: 0 | AA20: 0 | AB20: 0 | AC20: 0 | AD20: 0 | AE20: 0 | AF20: 0 | AG20: 0 | AH20: 0 | AI20: 0 | AJ20: 0 | AK20: 0 | AL20: 0 | AM20: 0 | AN20: 0 | AO20: 0 | AP20: 0 | AQ20: 0 | AR20: 0 | AS20: 0 | AT20: 0 | AU20: 0 | AV20: 0 | AW20: 0 | AX20: 0 | AY20: 0 | AZ20: 0 | BA20: 0 | BB20: 0 | BC20: 0 | BD20: 0 | BE20: 0 | BF20: 0 | BG20: 0 | BH20: 0 | BI20: 0 | BJ20: 0 | BK20: 0 | BL20: 0 | BM20: 0 | BN20: 0 | BO20: 0 | BP20: 0 | BQ20: 0 | BR20: 0 | BS20: 0 | BT20: 0 | BU20: 0 | BV20: 0 | BW20: 0 | BX20: 0 | BY20: 0 | BZ20: 0 | CA20: 0 | CB20: 0 | CC20: 0 | CD20: 0 | CE20: 0 | CF20: 0 | CG20: 0 | CH20: 0 | CI20: 0 | CJ20: 0 | CK20: 0 | CL20: 0 | CM20: 0 | CN20: 0 | CO20: 0 | CP20: 0 | CQ20: 0 | CR20: 0 | CS20: 0 | CT20: 0 | CU20: 0 | CV20: 0 | CW20: 0 | CX20: 0 | CY20: 0 | CZ20: 0 | DA20: 0 | DB20: 0 | DC20: 0 | DD20: 0 | DE20: 0 | DF20: 0 | DG20: 0 | DH20: 0 | DI20: 0 | DJ20: 0 | DK20: 0 | DL20: 0 | DM20: 0 | DN20: 0 | DO20: 0 | DP20: 0 | DQ20: 0 | DR20: 0 | DS20: 0 | DT20: 0 | DU20: 0 | DV20: 0 | DW20: 0 | DX20: 0 | DY20: 0 | DZ20: 0 | EA20: 0 | EB20: 0 | EC20: 0 | ED20: 0 | EE20: 0 | EF20: 0 | EG20: 0 | EH20: 0 | EI20: 0 | EJ20: 0 | EK20: 0 | EL20: 0 | EM20: 0 | EN20: 0 | EO20: 0 | EP20: 0 | EQ20: 0 | ER20: 0 | ES20: 0 | ET20: 0 | EU20: 0 | EV20: 0 | EW20: 0 | EX20: 0 | EY20: 0 | EZ20: 0 | FA20: 0 | FB20: 0 | FC20: 0 | FD20: 0 | FE20: 0 | FF20: 0 | FG20: 0 | FH20: 0 | FI20: 0 | FJ20: 0 | FK20: 0 | FL20: 0 | FM20: 0 | FN20: 0 | FO20: 0 | FP20: 0 | FQ20: 0 | FR20: 0 | FS20: 0 | FT20: 0 | FU20: 0 | FV20: 0 | FW20: 0 | FX20: 0 | FY20: 0 | FZ20: 0 | GA20: 0 | GB20: 0 | GC20: 0 | GD20: 0
B21: 12 | C21: 80.81 | D21: 6530 | E21: 5129 | F21: 1.588 | H21: 0.001588 | W21: 0 | X21: 0 | Y21: 0 | Z21: 0 | AA21: 0 | AB21: 0 | AC21: 0 | AD21: 0 | AE21: 0 | AF21: 0 | AG21: 0 | AH21: 0 | AI21: 0 | AJ21: 0 | AK21: 0 | AL21: 0 | AM21: 0 | AN21: 0 | AO21: 0 | AP21: 0 | AQ21: 0 | AR21: 0 | AS21: 0 | AT21: 0 | AU21: 0 | AV21: 0 | AW21: 0 | AX21: 0 | AY21: 0 | AZ21: 0 | BA21: 0 | BB21: 0 | BC21: 0 | BD21: 0 | BE21: 0 | BF21: 0 | BG21: 0 | BH21: 0 | BI21: 0 | BJ21: 0 | BK21: 0 | BL21: 0 | BM21: 0 | BN21: 0 | BO21: 0 | BP21: 0 | BQ21: 0 | BR21: 0 | BS21: 0 | BT21: 0 | BU21: 0 | BV21: 0 | BW21: 0 | BX21: 0 | BY21: 0 | BZ21: 0 | CA21: 0 | CB21: 0 | CC21: 0 | CD21: 0 | CE21: 0 | CF21: 0 | CG21: 0 | CH21: 0 | CI21: 0 | CJ21: 0 | CK21: 0 | CL21: 0 | CM21: 0 | CN21: 0 | CO21: 0 | CP21: 0 | CQ21: 0 | CR21: 0 | CS21: 0 | CT21: 0 | CU21: 0 | CV21: 0 | CW21: 0 | CX21: 0 | CY21: 0 | CZ21: 0 | DA21: 0 | DB21: 0 | DC21: 0 | DD21: 0 | DE21: 0 | DF21: 0 | DG21: 0 | DH21: 0 | DI21: 0 | DJ21: 0 | DK21: 0 | DL21: 0 | DM21: 0 | DN21: 0 | DO21: 0 | DP21: 0 | DQ21: 0 | DR21: 0 | DS21: 0 | DT21: 0 | DU21: 0 | DV21: 0 | DW21: 0 | DX21: 0 | DY21: 0 | DZ21: 0 | EA21: 0 | EB21: 0 | EC21: 0 | ED21: 0 | EE21: 0 | EF21: 0 | EG21: 0 | EH21: 0 | EI21: 0 | EJ21: 0 | EK21: 0 | EL21: 0 | EM21: 0 | EN21: 0 | EO21: 0 | EP21: 0 | EQ21: 0 | ER21: 0 | ES21: 0 | ET21: 0 | EU21: 0 | EV21: 0 | EW21: 0 | EX21: 0 | EY21: 0 | EZ21: 0 | FA21: 0 | FB21: 0 | FC21: 0 | FD21: 0 | FE21: 0 | FF21: 0 | FG21: 0 | FH21: 0 | FI21: 0 | FJ21: 0 | FK21: 0 | FL21: 0 | FM21: 0 | FN21: 0 | FO21: 0 | FP21: 0 | FQ21: 0 | FR21: 0 | FS21: 0 | FT21: 0 | FU21: 0 | FV21: 0 | FW21: 0 | FX21: 0 | FY21: 0 | FZ21: 0 | GA21: 0 | GB21: 0 | GC21: 0 | GD21: 0
B22: 13 | C22: 71.96 | D22: 5178 | E22: 4067 | F22: 2.003 | H22: 0.002003 | W22: 0 | X22: 0 | Y22: 0 | Z22: 0 | AA22: 0 | AB22: 0 | AC22: 0 | AD22: 0 | AE22: 0 | AF22: 0 | AG22: 0 | AH22: 0 | AI22: 0 | AJ22: 0 | AK22: 0 | AL22: 0 | AM22: 0 | AN22: 0 | AO22: 0 | AP22: 0 | AQ22: 0 | AR22: 0 | AS22: 0 | AT22: 0 | AU22: 0 | AV22: 0 | AW22: 0 | AX22: 0 | AY22: 0 | AZ22: 0 | BA22: 0 | BB22: 0 | BC22: 0 | BD22: 0 | BE22: 0 | BF22: 0 | BG22: 0 | BH22: 0 | BI22: 0 | BJ22: 0 | BK22: 0 | BL22: 0 | BM22: 0 | BN22: 0 | BO22: 0 | BP22: 0 | BQ22: 0 | BR22: 0 | BS22: 0 | BT22: 0 | BU22: 0 | BV22: 0 | BW22: 0 | BX22: 0 | BY22: 0 | BZ22: 0 | CA22: 0 | CB22: 0 | CC22: 0 | CD22: 0 | CE22: 0 | CF22: 0 | CG22: 0 | CH22: 0 | CI22: 0 | CJ22: 0 | CK22: 0 | CL22: 0 | CM22: 0 | CN22: 0 | CO22: 0 | CP22: 0 | CQ22: 0 | CR22: 0 | CS22: 0 | CT22: 0 | CU22: 0 | CV22: 0 | CW22: 0 | CX22: 0 | CY22: 0 | CZ22: 0 | DA22: 0 | DB22: 0 | DC22: 0 | DD22: 0 | DE22: 0 | DF22: 0 | DG22: 0 | DH22: 0 | DI22: 0 | DJ22: 0 | DK22: 0 | DL22: 0 | DM22: 0 | DN22: 0 | DO22: 0 | DP22: 0 | DQ22: 0 | DR22: 0 | DS22: 0 | DT22: 0 | DU22: 0 | DV22: 0 | DW22: 0 | DX22: 0 | DY22: 0 | DZ22: 0 | EA22: 0 | EB22: 0 | EC22: 0 | ED22: 0 | EE22: 0 | EF22: 0 | EG22: 0 | EH22: 0 | EI22: 0 | EJ22: 0 | EK22: 0 | EL22: 0 | EM22: 0 | EN22: 0 | EO22: 0 | EP22: 0 | EQ22: 0 | ER22: 0 | ES22: 0 | ET22: 0 | EU22: 0 | EV22: 0 | EW22: 0 | EX22: 0 | EY22: 0 | EZ22: 0 | FA22: 0 | FB22: 0 | FC22: 0 | FD22: 0 | FE22: 0 | FF22: 0 | FG22: 0 | FH22: 0 | FI22: 0 | FJ22: 0 | FK22: 0 | FL22: 0 | FM22: 0 | FN22: 0 | FO22: 0 | FP22: 0 | FQ22: 0 | FR22: 0 | FS22: 0 | FT22: 0 | FU22: 0 | FV22: 0 | FW22: 0 | FX22: 0 | FY22: 0 | FZ22: 0 | GA22: 0 | GB22: 0 | GC22: 0 | GD22: 0
B23: 14 | C23: 64.08 | D23: 4107 | E23: 3225 | F23: 2.525 | H23: 0.002525 | W23: 0 | X23: 0 | Y23: 0 | Z23: 0 | AA23: 0 | AB23: 0 | AC23: 0 | AD23: 0 | AE23: 0 | AF23: 0 | AG23: 0 | AH23: 0 | AI23: 0 | AJ23: 0 | AK23: 0 | AL23: 0 | AM23: 0 | AN23: 0 | AO23: 0 | AP23: 0 | AQ23: 0 | AR23: 0 | AS23: 0 | AT23: 0 | AU23: 0 | AV23: 0 | AW23: 0 | AX23: 0 | AY23: 0 | AZ23: 0 | BA23: 0 | BB23: 0 | BC23: 0 | BD23: 0 | BE23: 0 | BF23: 0 | BG23: 0 | BH23: 0 | BI23: 0 | BJ23: 0 | BK23: 0 | BL23: 0 | BM23: 0 | BN23: 0 | BO23: 0 | BP23: 0 | BQ23: 0 | BR23: 0 | BS23: 0 | BT23: 0 | BU23: 0 | BV23: 0 | BW23: 0 | BX23: 0 | BY23: 0 | BZ23: 0 | CA23: 0 | CB23: 0 | CC23: 0 | CD23: 0 | CE23: 0 | CF23: 0 | CG23: 0 | CH23: 0 | CI23: 0 | CJ23: 0 | CK23: 0 | CL23: 0 | CM23: 0 | CN23: 0 | CO23: 0 | CP23: 0 | CQ23: 0 | CR23: 0 | CS23: 0 | CT23: 0 | CU23: 0 | CV23: 0 | CW23: 0 | CX23: 0 | CY23: 0 | CZ23: 0 | DA23: 0 | DB23: 0 | DC23: 0 | DD23: 0 | DE23: 0 | DF23: 0 | DG23: 0 | DH23: 0 | DI23: 0 | DJ23: 0 | DK23: 0 | DL23: 0 | DM23: 0 | DN23: 0 | DO23: 0 | DP23: 0 | DQ23: 0 | DR23: 0 | DS23: 0 | DT23: 0 | DU23: 0 | DV23: 0 | DW23: 0 | DX23: 0 | DY23: 0 | DZ23: 0 | EA23: 0 | EB23: 0 | EC23: 0 | ED23: 0 | EE23: 0 | EF23: 0 | EG23: 0 | EH23: 0 | EI23: 0 | EJ23: 0 | EK23: 0 | EL23: 0 | EM23: 0 | EN23: 0 | EO23: 0 | EP23: 0 | EQ23: 0 | ER23: 0 | ES23: 0 | ET23: 0 | EU23: 0 | EV23: 0 | EW23: 0 | EX23: 0 | EY23: 0 | EZ23: 0 | FA23: 0 | FB23: 0 | FC23: 0 | FD23: 0 | FE23: 0 | FF23: 0 | FG23: 0 | FH23: 0 | FI23: 0 | FJ23: 0 | FK23: 0 | FL23: 0 | FM23: 0 | FN23: 0 | FO23: 0 | FP23: 0 | FQ23: 0 | FR23: 0 | FS23: 0 | FT23: 0 | FU23: 0 | FV23: 0 | FW23: 0 | FX23: 0 | FY23: 0 | FZ23: 0 | GA23: 0 | GB23: 0 | GC23: 0 | GD23: 0
B24: 15 | C24: 57.07 | D24: 3257 | E24: 2558 | F24: 3.184 | H24: 0.003184
B25: 16 | C25: 50.82 | D25: 2583 | E25: 2028 | F25: 4.016 | H25: 0.004016
B26: 17 | C26: 45.26 | D26: 2048 | E26: 1609 | F26: 5.064 | H26: 0.005064
B27: 18 | C27: 40.3 | D27: 1624 | E27: 1276 | F27: 6.385 | H27: 0.006385
B28: 19 | C28: 35.89 | D28: 1288 | E28: 1012 | F28: 8.051 | H28: 0.008051
B29: 20 | C29: 31.96 | D29: 1022 | E29: 802.3 | F29: 10.15 | H29: 0.01015
B30: 21 | C30: 28.46 | D30: 810.1 | E30: 636.3 | F30: 12.8 | H30: 0.0128
B31: 22 | C31: 25.35 | D31: 642.4 | E31: 504.6 | F31: 16.14 | H31: 0.01614
B32: 23 | C32: 22.57 | D32: 509.5 | E32: 400.2 | F32: 20.36 | H32: 0.02036
B33: 24 | C33: 20.1 | D33: 404 | E33: 317.3 | F33: 25.67 | H33: 0.02567 | L33: EXT48 | M33: 20
B34: 25 | C34: 17.9 | D34: 320.4 | E34: 251.7 | F34: 32.37 | H34: 0.03237 | L34: EXT96 | M34: 20
B35: 26 | C35: 15.94 | D35: 254.1 | E35: 199.6 | F35: 40.81 | H35: 0.04081 | L35: INFINA/ACX PC | M35: 18
B36: 27 | C36: 14.2 | D36: 201.5 | E36: 158.3 | F36: 51.47 | H36: 0.05147 | L36: CTA | M36: 22
B37: 28 | C37: 12.64 | D37: 159.8 | E37: 125.5 | F37: 64.9 | H37: 0.0649 | L37: RGB | M37: 22
B38: 29 | C38: 11.26 | D38: 126.7 | E38: 99.53 | F38: 81.83 | H38: 0.08183 | L38: RGBW | M38: 22
B39: 30 | C39: 10.03 | D39: 100.5 | E39: 78.94 | F39: 103.2 | H39: 0.1032 | L39: RGBWW | M39: 22
B40: 31 | C40: 8.928 | D40: 79.7 | E40: 62.6 | F40: 130.1 | H40: 0.1301 | L40: HW-20AWG | M40: 20
B41: 32 | C41: 7.95 | D41: 63.21 | E41: 49.64 | F41: 164.1 | H41: 0.1641 | L41: HW-18AWG | M41: 18
B42: 33 | C42: 7.08 | D42: 50.13 | E42: 39.37 | F42: 206.9 | H42: 0.2069 | L42: HW-16AWG | M42: 16
B43: 34 | C43: 6.305 | D43: 39.75 | E43: 31.22 | F43: 260.9 | H43: 0.2609 | L43: HW-14AWG | M43: 14
B44: 35 | C44: 5.615 | D44: 31.52 | E44: 24.76 | F44: 329 | H44: 0.329 | L44: HW-12AWG | M44: 12
B45: 36 | C45: 5 | D45: 25 | E45: 19.64 | F45: 414.8 | H45: 0.4148 | L45: HW-10AWG | M45: 10
B46: 37 | C46: 4.453 | D46: 19.83 | E46: 15.57 | F46: 523.1 | H46: 0.5231
B47: 38 | C47: 3.965 | D47: 15.72 | E47: 12.35 | F47: 659.6 | H47: 0.6596
B48: 39 | C48: 3.531 | D48: 12.47 | E48: 9.793 | F48: 831.8 | H48: 0.8318
B49: 40 | C49: 3.145 | D49: 9.888 | E49: 7.766 | F49: 1049 | H49: 1.049 | K49: =IF(N49>'VOLT LOSS CAL'!$C$16,1,0) ->  | L49: 10 | M49: =IFERROR(('VOLT LOSS CAL'!$C$15*Q69),"") ->  | N49: ='VOLT LOSS CAL'!$C$15-DATA!M49 -> 
K50: =IF(N50>'VOLT LOSS CAL'!$C$16,1,0) ->  | L50: 12 | M50: =IFERROR(('VOLT LOSS CAL'!$C$15*R69),"") ->  | N50: ='VOLT LOSS CAL'!$C$15-DATA!M50 -> 
K51: =IF(N51>'VOLT LOSS CAL'!$C$16,1,0) ->  | L51: 14 | M51: =IFERROR(('VOLT LOSS CAL'!$C$15*S69),"") ->  | N51: ='VOLT LOSS CAL'!$C$15-DATA!M51 -> 
K52: =IF(N52>'VOLT LOSS CAL'!$C$16,1,0) ->  | L52: 16 | M52: =IFERROR(('VOLT LOSS CAL'!$C$15*T69),"") ->  | N52: ='VOLT LOSS CAL'!$C$15-DATA!M52 ->  | Q52: Ohms/Ft | R52: =IFERROR(VLOOKUP('VOLT LOSS CAL'!C23,DATA!B6:$H$49,7,FALSE),"") -> 4.901e-05
K53: =IF(N53>'VOLT LOSS CAL'!$C$16,1,0) ->  | L53: 18 | M53: =IFERROR(('VOLT LOSS CAL'!$C$15*U69),"") ->  | N53: ='VOLT LOSS CAL'!$C$15-DATA!M53 ->  | Q53: Ohms | R53: =IFERROR((('VOLT LOSS CAL'!C24*R52)+('VOLT LOSS CAL'!C12*DATA!H27)*2),"") -> 0
K54: =IF(N54>'VOLT LOSS CAL'!$C$16,1,0) ->  | L54: 20 | M54: =IFERROR(('VOLT LOSS CAL'!$C$15*V69),"") ->  | N54: ='VOLT LOSS CAL'!$C$15-DATA!M54 ->  | Q54: Volt Drop | R54: =IFERROR((('VOLT LOSS CAL'!C21*DATA!R53)/'VOLT LOSS CAL'!C15),"") -> 
K55: =IF(N55>'VOLT LOSS CAL'!$C$16,1,0) ->  | L55: 22 | M55: =IFERROR(('VOLT LOSS CAL'!$C$15*W69),"") ->  | N55: ='VOLT LOSS CAL'!$C$15-DATA!M55 ->  | Q55: Volt Drop (V) | R55: =IFERROR(('VOLT LOSS CAL'!C15*DATA!R54),"") -> 
Q56: Volt Out (V) | R56: =IFERROR(('VOLT LOSS CAL'!C15-DATA!R55),"") -> 
L58: =IF(N49>'VOLT LOSS CAL'!C16,"10AWG ","")&IF(DATA!N50>'VOLT LOSS CAL'!C16,"12AWG ","")&IF(DATA!N51>'VOLT LOSS CAL'!C16,"14AWG ","")&IF(DATA!N52>'VOLT LOSS CAL'!C16,"16AWG ","")&IF(DATA!N53>'VOLT LOSS CAL'!C16,"18AWG ","")&IF(DATA!N54>'VOLT LOSS CAL'!C16,"20AWG ","") ->  | Q58: Constant Current | S58: =24-U58 -> 23.04 | U58: =24*4% -> 0.96
L59: Supplied by other | Q59: Constant Voltage | S59: =24-U59 -> 23.4 | U59: =24*2.5% -> 0.6
Q60: Constant Current | S60: =163-U60 -> 158.11 | U60: =163*3% -> 4.89
L61: =CONCATENATE(L58,L59) ->  | Q61: Constant Voltage | S61: =163-U61 -> 158.11 | U61: =163*3% -> 4.89
Q66: 10 | R66: 12 | S66: 14 | T66: 16 | U66: 18 | V66: 20 | W66: 22
Q67: =H19 -> 0.0009989 | R67: =H21 -> 0.001588 | S67: =H23 -> 0.002525 | T67: =H25 -> 0.004016 | U67: =H27 -> 0.006385 | V67: =H29 -> 0.01015 | W67: =H31 -> 0.01614
Q68: =IFERROR((('VOLT LOSS CAL'!$C$24*Q67)*2),"") -> 0 | R68: =IFERROR((('VOLT LOSS CAL'!$C$24*R67)*2),"") -> 0 | S68: =IFERROR((('VOLT LOSS CAL'!$C$24*S67)*2),"") -> 0 | T68: =IFERROR((('VOLT LOSS CAL'!$C$24*T67)*2),"") -> 0 | U68: =IFERROR((('VOLT LOSS CAL'!$C$24*U67)*2),"") -> 0 | V68: =IFERROR((('VOLT LOSS CAL'!$C$24*V67)*2),"") -> 0 | W68: =IFERROR((('VOLT LOSS CAL'!$C$24*W67)*2),"") -> 0
Q69: =IFERROR((('VOLT LOSS CAL'!$C$21*Q68)/'VOLT LOSS CAL'!$C$15),"") ->  | R69: =IFERROR((('VOLT LOSS CAL'!$C$21*R68)/'VOLT LOSS CAL'!$C$15),"") ->  | S69: =IFERROR((('VOLT LOSS CAL'!$C$21*S68)/'VOLT LOSS CAL'!$C$15),"") ->  | T69: =IFERROR((('VOLT LOSS CAL'!$C$21*T68)/'VOLT LOSS CAL'!$C$15),"") ->  | U69: =IFERROR((('VOLT LOSS CAL'!$C$21*U68)/'VOLT LOSS CAL'!$C$15),"") ->  | V69: =IFERROR((('VOLT LOSS CAL'!$C$21*V68)/'VOLT LOSS CAL'!$C$15),"") ->  | W69: =IFERROR((('VOLT LOSS CAL'!$C$21*W68)/'VOLT LOSS CAL'!$C$15),"") -> 
M80: 18 | N80: 1
M81: 16 | N81: 2
M82: 14 | N82: 3
M83: 12 | N83: 4
M84: 10 | N84: 5
N85: 6
N86: 7
N87: 8
N88: 9
N89: 10
N90: 11
N91: 12
N92: 13
N93: 14
N94: 15
N95: 16
N96: 17
N97: 18
N98: 19
N99: 20
N100: 21
N101: 22
N102: 23
N103: 24
N104: 25
N105: 26
N106: 27
N107: 28
N108: 29
N109: 30
N110: 31
N111: 32
N112: 33
N113: 34
N114: 35
N115: 36
N116: 37
N117: 38
N118: 39
N119: 40
N120: 41
N121: 42
N122: 43
N123: 44
N124: 45
N125: 46
N126: 47
N127: 48
N128: 49
N129: 50
N130: 51
N131: 52
N132: 53
N133: 54
N134: 55
N135: 56
N136: 57
N137: 58
N138: 59
N139: 60
N140: 61
N141: 62
N142: 63
N143: 64
N144: 65
N145: 66
N146: 67
N147: 68
N148: 69
N149: 70
N150: 71
N151: 72
N152: 73
N153: 74
N154: 75
N155: 76
N156: 77
N157: 78
N158: 79
N159: 80
N160: 81
N161: 82
N162: 83
N163: 84
N164: 85
N165: 86
N166: 87
N167: 88
N168: 89
N169: 90
N170: 91
N171: 92
N172: 93
N173: 94
N174: 95
N175: 96
N176: 97
N177: 98
N178: 99
N179: 100
N180: 101
N181: 102
N182: 103
N183: 104
N184: 105
N185: 106
N186: 107
N187: 108
N188: 109
N189: 110
N190: 111
N191: 112
N192: 113
N193: 114
N194: 115
N195: 116
N196: 117
N197: 118
N198: 119
N199: 120
N200: 121
N201: 122
N202: 123
N203: 124
N204: 125
N205: 126
N206: 127
N207: 128
N208: 129
N209: 130
N210: 131
N211: 132
N212: 133
N213: 134
N214: 135
N215: 136
... 1533 more rows
